Workbook

Sheet Optimizer
L1: Indeterminate2 | R1: ns= | S1: 2
H2: Parameter | I2: Next | J2: Feasibility | K2: dx/x | L2: 1 | M2: Stage | R2: Dsets= | S2: 1
C3: Optimizer (Cyclic, RLM, Leapfrog)= | D3: Leapfrog | G3: Coefficient | H3: Values | I3: Change | J3: Status | M3: best | O3: attenuate | R3: Ndata(1)= | S3: 483
A4: Nvar = | B4: 8 | C4: Start New (Y/N) | D4: Y | E4: Trial= | F4: 82 | G4: Ax1= | H4: -5.015168638 | I4: 0.0009515334575 | J4: PASS | K4: =ABS(I4/H4) -> 0.000189731099 | L4: 1 | M4: lambda | O4: 2.7712 | Q4: -0.5 | R4: Ndata(2)= | S4: 483
A5: N Euler = | B5: 5 | C5: Start Num = | D5: 48 | E5: Iteration= | F5: 142 | G5: B1= | H5: -0.140150909 | I5: -1.061124595e-06 | J5: PASS | K5: =ABS(I5/H5) -> 7.571300123e-06 | L5: 0.01 | M5: stepsize | O5: 3.49668352 | Q5: -2
A6: Nominal dT = | B6: 1 | C6: EndNum = | D6: 82 | E6: Variable= | F6: 8 | G6: Ax2= | H6: -0.3912741517 | I6: -0.8763632527 | J6: PASS | K6: 2.239767817 | L6: 0 | M6: PlusCount | O6: 3.868058605 | Q6: -1
A7: PesudoComponent #= | B7: 4 | C7: Max Iter = | D7: 500 | E7: SSD= | F7: 2.720495293 | G7: B2= | H7: -26.45589419 | I7: 2.091900434e-06 | J7: PASS | K7: 7.907124284e-08 | L7: 0 | M7: magnitude | O7: 3.677877453 | Q7: -2
C8: R-Stat Threshold= | D8: 0.8 | E8: Success? | F8: NO | G8: Tau2 | H8: 120.832526 | I8: -6.431330457e-07 | J8: PASS | K8: 5.322515941e-09 | L8: 12224916.26 | M8: fofxbase | O8: 3.868058605 | Q8: 10
C9: Scan (Y/N) | D9: N | E9: rmrs= | F9: 0.6420991272 | G9: Ax3= | H9: 2.258221038 | I9: -7.766857447e-07 | J9: PASS | K9: 3.439369892e-07 | L9: 0 | M9: fofxig | O9: 3.677877453 | Q9: 1
C10: No. of Alternating Stages | D10: 1 | E10: relimprov= | F10: 0.001138771965 | G10: B3= | H10: 0.7906461869 | I10: 2.029641487e-05 | J10: PASS | K10: 2.567066686e-05 | L10: 0 | M10: fofxignr | O10: 3.868058605 | Q10: 1
A11: Simulation dT = | B11: =B6/B5 -> 0.2 | E11: rms= | F11: 0.07270215 | G11: Tau3 | H11: 3.067082911 | I11: 1e-07 | J11: PASS | K11: 3.260427021e-08 | L11: 3364.483795 | M11: rcoeff | O11: 3.213568 | Q11: 50
A12: =B11/H8 -> 0.001655183473 | B12: must be << 1 | E12: Best SSD = | F12: 2.418023214 | N12: s
A13: =B11/H11 -> 0.06520854042 | B13: must be << 1 | E13: R-Statistic= | F13: 0.7793666307 | J13: rms(dx/x)= | K13: =SQRT((K4^2+K5^2+K6^2+K7^2+K8^2+K9^2+K10^2+K11^2)/8) -> 0.7918775089
F14: Optimization Results | I14: component 4 | K14: LF20 | S14: Optimization Results | V14: component 1 | W14: 5 | X14: LF20 | AF14: Optimization Results | AI14: component 2 | AJ14: 1 | AK14: LF20 | AS14: Optimization Results | AV14: component 3 | AW14: 2 | AX14: LF20 | BF14: Optimization Results | BI14: component 4 | BJ14: 3 | BK14: LF20 | BS14: Optimization Results | BV14: component 6 | BW14: 4 | BX14: LF20
C15: dN/dSSD | D15: dN/dSSD | F15: Trial | G15: Stop Iteration | H15: SSD | I15: Ax1 | J15: B1 | K15: Ax2 | L15: B2 | M15: Tau2 | N15: Ax3 | O15: B3 | P15: Tau3 | Q15: NOFE | S15: Trial | T15: Stop Iteration | U15: SSD | V15: Ax1 | W15: B1 | X15: Ax2 | Y15: B2 | Z15: Tau2 | AA15: Ax3 | AB15: B3 | AC15: Tau3 | AD15: NOFE | AF15: Trial | AG15: Stop Iteration | AH15: SSD | AI15: Ax1 | AJ15: B1 | AK15: Ax2 | AL15: B2 | AM15: Tau2 | AN15: Ax3 | AO15: B3 | AP15: Tau3 | AQ15: NOFE | AS15: Trial | AT15: Stop Iteration | AU15: SSD | AV15: Ax1 | AW15: B1 | AX15: Ax2 | AY15: B2 | AZ15: Tau2 | BA15: Ax3 | BB15: B3 | BC15: Tau3 | BD15: NOFE | BF15: Trial | BG15: Stop Iteration | BH15: SSD | BI15: Ax1 | BJ15: B1 | BK15: Ax2 | BL15: B2 | BM15: Tau2 | BN15: Ax3 | BO15: B3 | BP15: Tau3 | BQ15: NOFE | BS15: Trial | BT15: Stop Iteration | BU15: SSD | BV15: Ax1 | BW15: B1 | BX15: Ax2 | BY15: B2 | BZ15: Tau2 | CA15: Ax3 | CB15: B3 | CC15: Tau3 | CD15: NOFE
C16: Cyclic | D16: RLM | E16: 0.01 | F16: 48 | G16: 257 | H16: 0.5416422255 | I16: -5.015168638 | J16: -0.140150909 | K16: -0.3912741517 | L16: -26.45589419 | M16: 120.832526 | N16: 2.258221038 | O16: 0.7906461869 | P16: 3.067082911 | Q16: 6468 | CI16: Cyclic | CJ16: LF(50) | CK16: RLM
E17: 0.02 | F17: 66 | G17: 152 | H17: 0.6899603218 | I17: 2.009842649 | J17: 0.2204208798 | K17: -0.5303692136 | L17: -159.8455161 | M17: 171.4795593 | N17: 2.706845766 | O17: 0.7597443419 | P17: 2.751135603 | Q17: 3843 | CH17: NOFE | CI17: =Q117 -> 3342.285714 | CJ17: =AD117 -> 3969.428571 | CK17: =BQ117 -> 
C18: =(E20-E16)/(#REF!-#REF!) ->  | D18: =(E20-E16)/(#REF!-#REF!) ->  | E18: 0.03 | F18: 50 | G18: 182 | H18: 1.000269703 | I18: -1.194517847 | J18: -1.308786525 | K18: 0.005272493537 | L18: 3.898549124 | M18: 105.845083 | N18: 12.64773938 | O18: 0.3927564268 | P18: 2.235792618 | Q18: 4593
C19: =(E21-E17)/(#REF!-#REF!) ->  | D19: =(E21-E17)/(#REF!-#REF!) ->  | E19: 0.04 | F19: 69 | G19: 251 | H19: 1.045846747 | I19: -2.45488751 | J19: -0.3859754165 | K19: -0.4758330815 | L19: -3.115371775 | M19: 54.68161589 | N19: 5.79672352 | O19: 0.6812766613 | P19: 1.496753058 | Q19: 6318 | CH19: OF= | CI19: 800
A20: Data Out | C20: =(E22-E18)/(#REF!-#REF!) ->  | D20: =(E22-E18)/(#REF!-#REF!) ->  | E20: 0.05 | F20: 51 | G20: 111 | H20: 1.199199237 | I20: -2.62295163 | J20: -0.3593947421 | K20: 2.014914362 | L20: 0.3375750139 | M20: 48.28382225 | N20: 11.90217739 | O20: 0.5240020992 | P20: 1.23474767 | Q20: 2818 | CH20: fract | CI20: 0.29 | CJ20: 0.13 | CK20: 0.17
A21: Yes | C21: =(E23-E19)/(#REF!-#REF!) ->  | D21: =(E23-E19)/(#REF!-#REF!) ->  | E21: 0.06 | F21: 76 | G21: 124 | H21: 1.224347521 | I21: -2.605602238 | J21: -0.3604490341 | K21: -0.439541202 | L21: -6.828242828 | M21: 44.55397795 | N21: 37.19853678 | O21: 0.8647689562 | P21: 0.1099632748 | Q21: 3143 | CH21: NOFE/Best | CI21: =CI17/CI20 -> 11525.12315 | CJ21: =CJ17/CJ20 -> 30534.06593
A22: ignr | C22: =(E24-E20)/(#REF!-#REF!) ->  | D22: =(E24-E20)/(#REF!-#REF!) ->  | E22: 0.07 | F22: 56 | G22: 121 | H22: 1.393572545 | I22: -1.886819304 | J22: -0.6406201698 | K22: -3.091091243 | L22: -4.299408279 | M22: 0.9855458364 | N22: 0.3525010865 | O22: 0.9237729998 | P22: 22.41408047 | Q22: 3068 | CH22: ratio | CI22: =CI21/$CJ$21 -> 0.3774513089 | CJ22: =CJ21/$CJ$21 -> 1
B23: PASS | C23: =(E25-E21)/(#REF!-#REF!) ->  | D23: =(E25-E21)/(#REF!-#REF!) ->  | E23: 0.08 | F23: 61 | G23: 185 | H23: 1.429202572 | I23: -1.755651489 | J23: -0.7196561156 | K23: -2.129153753 | L23: -5.109423072 | M23: 1.470579523 | N23: 0.1283955333 | O23: 1.270411649 | P23: 27.04425409 | Q23: 4668
A24: 0.05757518067 | C24: =(E26-E22)/(#REF!-#REF!) ->  | D24: =(E26-E22)/(#REF!-#REF!) ->  | E24: 0.09 | F24: 54 | G24: 138 | H24: 1.720671432 | I24: 1.21067483 | J24: 0.2321047713 | K24: 12.31354696 | L24: 0.08297103216 | M24: 189.1319504 | N24: 35.9440549 | O24: 0.355855358 | P24: 0.8012868958 | Q24: 3493
A25: 0.0003862789503 | C25: =(E27-E23)/(#REF!-#REF!) ->  | D25: =(E27-E23)/(#REF!-#REF!) ->  | E25: 0.1 | F25: 79 | G25: 114 | H25: 1.937200533 | I25: 1.249232855 | J25: 0.2895303046 | K25: -1.202051956 | L25: -1.065194789 | M25: 200.4003198 | N25: -1157.642574 | O25: -0.006113889834 | P25: 2.213786853 | Q25: 2893 | CH25: OF= | CI25: 900
C26: =(E28-E24)/(#REF!-#REF!) ->  | D26: =(E28-E24)/(#REF!-#REF!) ->  | E26: 0.11 | F26: 63 | G26: 158 | H26: 2.081431714 | I26: -4.256045875 | J26: -0.1754689771 | K26: -2.053867334 | L26: -5.632483078 | M26: 1.607675415 | N26: -34.67244636 | O26: -0.02160134628 | P26: 83.82845402 | Q26: 3993 | CH26: fract | CI26: 0.34 | CJ26: 0.15 | CK26: 0.17
C27: =(E29-E25)/(#REF!-#REF!) ->  | D27: =(E29-E25)/(#REF!-#REF!) ->  | E27: 0.12 | F27: 49 | G27: 126 | H27: 2.093429152 | I27: 3.805775026 | J27: 0.1299661326 | K27: -0.4978022179 | L27: -163.8031377 | M27: 2.464750875 | N27: -3.781667201 | O27: -0.2474630121 | P27: 143.448985 | Q27: 3193 | CH27: NOFE/Best | CI27: =CI17/CI26 -> 9830.252101 | CJ27: =CJ17/CJ26 -> 26462.85714
C28: =(E30-E26)/(#REF!-#REF!) ->  | D28: =(E30-E26)/(#REF!-#REF!) ->  | E28: 0.13 | F28: 75 | G28: 210 | H28: 2.108112988 | I28: -4.194419589 | J28: -0.1784884097 | K28: 5.573420862 | L28: 1.854698398 | M28: 1.30081036 | N28: -72.28068477 | O28: -0.01045292108 | P28: 82.5319987 | Q28: 5293 | CI28: =CI27/$CJ$27 -> 0.3714735732 | CJ28: =CJ27/$CJ$27 -> 1
C29: =(E31-E27)/(#REF!-#REF!) ->  | D29: =(E31-E27)/(#REF!-#REF!) ->  | E29: 0.14 | F29: 81 | G29: 98 | H29: 2.146947589 | I29: -3.033982272 | J29: -0.2889041546 | K29: -1.786546235 | L29: -5.94912306 | M29: 1.798128428 | N29: -67.95508357 | O29: -0.01015950043 | P29: 62.85766045 | Q29: 2493
C30: =(E32-E28)/(#REF!-#REF!) ->  | D30: =(E32-E28)/(#REF!-#REF!) ->  | E30: 0.15 | F30: 58 | G30: 144 | H30: 2.153044021 | I30: -4.405426473 | J30: -0.1737519737 | K30: 2.114478326 | L30: 4.518204033 | M30: 1.251279293 | N30: -22.21248553 | O30: -0.03500147982 | P30: 73.58980447 | Q30: 3643
C31: =(E33-E29)/(#REF!-#REF!) ->  | D31: =(E33-E29)/(#REF!-#REF!) ->  | E31: 0.16 | F31: 71 | G31: 128 | H31: 2.167190357 | I31: -3.204834422 | J31: -0.2652966421 | K31: 4.195522752 | L31: 2.410648143 | M31: 1.271711227 | N31: -41.14803547 | O31: -0.01780599854 | P31: 64.24302366 | Q31: 3243
C32: =(E34-E30)/(#REF!-#REF!) ->  | D32: =(E34-E30)/(#REF!-#REF!) ->  | E32: 0.17 | F32: 80 | G32: 140 | H32: 2.238046437 | I32: -2.725056861 | J32: -0.3462428294 | K32: 18.75164567 | L32: 0.04144208562 | M32: 45.17316099 | N32: -5927.249876 | O32: -0.002378031102 | P32: 0.9302048474 | Q32: 3543
C33: =(E35-E31)/(#REF!-#REF!) ->  | D33: =(E35-E31)/(#REF!-#REF!) ->  | E33: 0.18 | F33: 57 | G33: 89 | H33: 2.295767328 | I33: -2.740869966 | J33: -0.3453876221 | K33: 0.9523039912 | L33: 9.712542681 | M33: 1.016771917 | N33: -30.73478077 | O33: -0.02476826411 | P33: 46.55202357 | Q33: 2268
C34: =(E36-E32)/(#REF!-#REF!) ->  | D34: =(E36-E32)/(#REF!-#REF!) ->  | E34: 0.19 | F34: 82 | G34: 142 | H34: 2.418023214 | I34: -2.981114169 | J34: -0.3104324547 | K34: 4.723782328 | L34: 0.1806539808 | M34: 39.13231152 | N34: -9121.215144 | O34: -0.01687704993 | P34: 0.07947078512 | Q34: 3593
A35: Constitutive Model | B35: # | C35: =(E37-E33)/(#REF!-#REF!) ->  | D35: =(E37-E33)/(#REF!-#REF!) ->  | E35: 0.2 | F35: 55 | G35: 196 | H35: 2.672499577 | I35: 10.21532292 | J35: 0.05421223072 | K35: -0.4522267562 | L35: -135.9947745 | M35: 129.6125308 | N35: 0.9565682408 | O35: 0.7008152699 | P35: 11.56226881 | Q35: 4943
A36: Dashpot = | B36: 1 | C36: =(E38-E34)/(#REF!-#REF!) ->  | D36: =(E38-E34)/(#REF!-#REF!) ->  | E36: 0.21 | F36: 73 | G36: 96 | H36: 2.682501205 | I36: -4.286731504 | J36: -0.1926410832 | K36: -0.655461801 | L36: -17.59283158 | M36: 5.585908012 | N36: -0.9626022218 | O36: -0.5805020944 | P36: 116.4936878 | Q36: 2443
A37: Relax Structure = | B37: 2 | C37: =(E39-E35)/(#REF!-#REF!) ->  | D37: =(E39-E35)/(#REF!-#REF!) ->  | E37: 0.22 | F37: 62 | G37: 115 | H37: 2.76014427 | I37: -2.050612622 | J37: -0.6027070164 | K37: -0.5668909449 | L37: -0.0001900490588 | M37: 65.37936608 | N37: 5.423442745 | O37: 0.4475629073 | P37: 5.458001569 | Q37: 2918
A38: Retain Structure = | B38: 3 | C38: =(E40-E36)/(#REF!-#REF!) ->  | D38: =(E40-E36)/(#REF!-#REF!) ->  | E38: 0.23 | F38: 65 | G38: 139 | H38: 2.896003152 | I38: 8.964728161 | J38: 0.06770417505 | K38: 95.22650522 | L38: 0.04983528347 | M38: 4.042274006 | N38: -0.6011759952 | O38: -1.262770619 | P38: 298.9053907 | Q38: 3518
A39: Dashpot & Retain = | B39: 4 | C39: =(E41-E37)/(#REF!-#REF!) ->  | D39: =(E41-E37)/(#REF!-#REF!) ->  | E39: 0.24 | F39: 77 | G39: 82 | H39: 2.919183104 | I39: 1.382491427 | J39: 0.3213126548 | K39: 3.724050921 | L39: 1.245021518 | M39: 3.566355832 | N39: -0.5888372595 | O39: -2.232863585 | P39: 464.068696 | Q39: 2093
A40: Dashpot & Return = | B40: 5 | C40: =(E42-E38)/(#REF!-#REF!) ->  | D40: =(E42-E38)/(#REF!-#REF!) ->  | E40: 0.25 | F40: 72 | G40: 66 | H40: 3.087808641 | I40: -2.422101282 | J40: -0.4502455514 | K40: -0.6866507929 | L40: -8.396893812 | M40: 11.66655365 | N40: -35.9272522 | O40: -0.1378734079 | P40: 0.6279517586 | Q40: 1693
A41: Retain & Return = | B41: 6 | C41: =(E43-E39)/(#REF!-#REF!) ->  | D41: =(E43-E39)/(#REF!-#REF!) ->  | E41: 0.26 | F41: 68 | G41: 128 | H41: 3.215980013 | I41: -2.483522883 | J41: -0.4389975505 | K41: -0.6936758435 | L41: -12.53174738 | M41: 11.13774983 | N41: -4.489509559e-06 | O41: -1.696907115 | P41: 0.0001568877492 | Q41: 3243
C42: =(E44-E40)/(#REF!-#REF!) ->  | D42: =(E44-E40)/(#REF!-#REF!) ->  | E42: 0.27 | F42: 70 | G42: 72 | H42: 3.215980518 | I42: -2.484096225 | J42: -0.4388332271 | K42: -0.6936564152 | L42: -12.53270158 | M42: 11.14113869 | N42: -0.007979679105 | O42: -0.7295729362 | P42: 1.898166759e-05 | Q42: 1843
C43: =(E45-E41)/(#REF!-#REF!) ->  | D43: =(E45-E41)/(#REF!-#REF!) ->  | E43: 0.28 | F43: 64 | G43: 102 | H43: 3.215983842 | I43: -2.482025093 | J43: -0.4393545541 | K43: -0.6938324102 | L43: -12.52095341 | M43: 11.14324926 | N43: -6.465163356e-09 | O43: -0.7345343704 | P43: 43.48118122 | Q43: 2593
C44: =(E46-E42)/(#REF!-#REF!) ->  | D44: =(E46-E42)/(#REF!-#REF!) ->  | E44: 0.29 | F44: 67 | G44: 107 | H44: 3.215987164 | I44: -2.481260549 | J44: -0.4396348056 | K44: -0.6939837407 | L44: -12.51397948 | M44: 11.11821586 | N44: -0.03929605723 | O44: -1.935711876 | P44: 3.398601852e-07 | Q44: 2718
C45: =(E47-E43)/(#REF!-#REF!) ->  | D45: =(E47-E43)/(#REF!-#REF!) ->  | E45: 0.3 | F45: 60 | G45: 109 | H45: 3.216030253 | I45: -2.480140094 | J45: -0.4399267118 | K45: -0.6965337485 | L45: -12.35955335 | M45: 11.10519791 | N45: -2.431972323e-07 | O45: -244.6860781 | P45: 0.09378354529 | Q45: 2768
C46: =(E48-E44)/(#REF!-#REF!) ->  | D46: =(E48-E44)/(#REF!-#REF!) ->  | E46: 0.31 | F46: 78 | G46: 77 | H46: 3.240411343 | I46: -2.339695412 | J46: -0.4813344233 | K46: -0.7056793472 | L46: -11.87318578 | M46: 10.57138233 | N46: -0.00988444026 | O46: -3.85465095 | P46: 1.430637067e-12 | Q46: 1968
C47: =(E49-E45)/(#REF!-#REF!) ->  | D47: =(E49-E45)/(#REF!-#REF!) ->  | E47: 0.32 | F47: 52 | G47: 92 | H47: 3.817564702 | I47: -2.351803312 | J47: -0.4912174725 | K47: 72.44121424 | L47: 0.05167775894 | M47: 5.821333352 | N47: -0.2567088024 | O47: -23.98257769 | P47: 0.6854976342 | Q47: 2343
C48: =(E50-E46)/(#REF!-#REF!) ->  | D48: =(E50-E46)/(#REF!-#REF!) ->  | E48: 0.33 | F48: 53 | G48: 154 | H48: 3.832188873 | I48: -2.335073862 | J48: -0.4970225595 | K48: 73.9339768 | L48: 0.0541069391 | M48: 5.353924994 | N48: -0.003462328328 | O48: -0.05732454507 | P48: 0.0004834277369 | Q48: 3893
C49: =(E51-E47)/(#REF!-#REF!) ->  | D49: =(E51-E47)/(#REF!-#REF!) ->  | E49: 0.34 | F49: 74 | G49: 79 | H49: 3.836241513 | I49: -2.348107137 | J49: -0.4922986969 | K49: 31.04035528 | L49: 0.125083609 | M49: 5.502147111 | N49: -0.002171884252 | O49: -6.867182271 | P49: 0.07221624259 | Q49: 2018
C50: =(E52-E48)/(#REF!-#REF!) ->  | D50: =(E52-E48)/(#REF!-#REF!) ->  | E50: 0.35 | F50: 59 | G50: 135 | H50: 5.496555437 | I50: 30.39625663 | J50: 0.02149931768 | K50: -0.641262362 | L50: -28.81862377 | M50: 44.21557556 | N50: -1.124564788 | O50: -26.90594378 | P50: 0.002702650184 | Q50: 3418
C51: =(E53-E49)/(#REF!-#REF!) ->  | D51: =(E53-E49)/(#REF!-#REF!) ->  | E51: 0.36
C52: =(E54-E50)/(#REF!-#REF!) ->  | D52: =(E54-E50)/(#REF!-#REF!) ->  | E52: 0.37
C53: =(E55-E51)/(#REF!-#REF!) ->  | D53: =(E55-E51)/(#REF!-#REF!) ->  | E53: 0.38
C54: =(E56-E52)/(#REF!-#REF!) ->  | D54: =(E56-E52)/(#REF!-#REF!) ->  | E54: 0.39
C55: =(E57-E53)/(#REF!-#REF!) ->  | D55: =(E57-E53)/(#REF!-#REF!) ->  | E55: 0.4
C56: =(E58-E54)/(#REF!-#REF!) ->  | D56: =(E58-E54)/(#REF!-#REF!) ->  | E56: 0.41
C57: =(E59-E55)/(#REF!-#REF!) ->  | D57: =(E59-E55)/(#REF!-#REF!) ->  | E57: 0.42
C58: =(E60-E56)/(#REF!-#REF!) ->  | D58: =(E60-E56)/(#REF!-#REF!) ->  | E58: 0.43
C59: =(E61-E57)/(#REF!-#REF!) ->  | D59: =(E61-E57)/(#REF!-#REF!) ->  | E59: 0.44
C60: =(E62-E58)/(#REF!-#REF!) ->  | D60: =(E62-E58)/(#REF!-#REF!) ->  | E60: 0.45
C61: =(E63-E59)/(#REF!-#REF!) ->  | D61: =(E63-E59)/(#REF!-#REF!) ->  | E61: 0.46
C62: =(E64-E60)/(#REF!-#REF!) ->  | D62: =(E64-E60)/(#REF!-#REF!) ->  | E62: 0.47
C63: =(E65-E61)/(#REF!-#REF!) ->  | D63: =(E65-E61)/(#REF!-#REF!) ->  | E63: 0.48 | S63: 48 | T63: 108 | U63: 1.628562628 | V63: -3.684451349 | W63: -0.8315283919 | X63: 4.65144775 | Y63: 1.300865036 | Z63: 1.372149419 | AA63: -1.659569578 | AB63: -116.8258638 | AC63: 26.66320571 | AD63: 2743
C64: =(E66-E62)/(#REF!-#REF!) ->  | D64: =(E66-E62)/(#REF!-#REF!) ->  | E64: 0.49 | S64: 49 | T64: 300 | U64: 1.278414575 | V64: -4.476706351 | W64: -0.6033749241 | X64: -38819.58608 | Y64: -0.0008084862366 | Z64: 1.764101479 | AA64: -1.201282473 | AB64: -103.5618418 | AC64: 72.31760086 | AD64: 7543
C65: =(E67-E63)/(#REF!-#REF!) ->  | D65: =(E67-E63)/(#REF!-#REF!) ->  | E65: 0.5 | S65: 50 | T65: 110 | U65: 11.33638133 | V65: -3.593098692 | W65: -1.365465297 | X65: -2.125664233 | Y65: -22.31153719 | Z65: 0.03473961421 | AA65: 124.1372893 | AB65: 0.7014331522 | AC65: 1.987314423 | AD65: 2793
C66: =(E68-E64)/(#REF!-#REF!) ->  | D66: =(E68-E64)/(#REF!-#REF!) ->  | E66: 0.51 | S66: 51 | T66: 129 | U66: 9.500960446 | V66: -4.997677223 | W66: -0.6073367499 | X66: -0.7804648189 | Y66: -6.465273005 | Z66: 215.9382417 | AA66: 27.59400745 | AB66: 4.609335607 | AC66: 1.154023248 | AD66: 3268
C67: =(E69-E65)/(#REF!-#REF!) ->  | D67: =(E69-E65)/(#REF!-#REF!) ->  | E67: 0.52 | S67: 52 | T67: 146 | U67: 13.17279075 | V67: 1.653306717 | W67: 0.6085313818 | X67: 4850.232945 | Y67: 0.02295378096 | Z67: 0.6382070456 | AA67: 5.439999221 | AB67: 0.9996820193 | AC67: 65.13250721 | AD67: 3693
C68: =(E70-E66)/(#REF!-#REF!) ->  | D68: =(E70-E66)/(#REF!-#REF!) ->  | E68: 0.53 | S68: 53 | T68: 122 | U68: 10.52895772 | V68: -3.444073492 | W68: -1.386839109 | X68: -97.00979692 | Y68: -0.723598449 | Z68: 1.926867043 | AA68: -1.100035005e-07 | AB68: -0.02170793352 | AC68: 0.05333785918 | AD68: 3093
C69: =(E71-E67)/(#REF!-#REF!) ->  | D69: =(E71-E67)/(#REF!-#REF!) ->  | E69: 0.54 | S69: 54 | T69: 100 | U69: 11.30144554 | V69: -3.56326464 | W69: -1.386695582 | X69: -1.112246315 | Y69: -1648.087767 | Z69: 2.307412546 | AA69: 130.1197341 | AB69: 0.6431905914 | AC69: 2.061232975 | AD69: 2543
C70: =(E72-E68)/(#REF!-#REF!) ->  | D70: =(E72-E68)/(#REF!-#REF!) ->  | E70: 0.55 | S70: 55 | T70: 111 | U70: 9.323509917 | V70: 1.3203721 | W70: 0.605501336 | X70: -2.726568619 | Y70: -1.940896704 | Z70: 288.1485502 | AA70: 44.34152912 | AB70: 2.681489241 | AC70: 1.30774695 | AD70: 2818
C71: =(E73-E69)/(#REF!-#REF!) ->  | D71: =(E73-E69)/(#REF!-#REF!) ->  | E71: 0.56 | S71: 56 | T71: 193 | U71: 5.015446294 | V71: -2.922205762 | W71: -1.962971084 | X71: 0.163951541 | Y71: 2.313928607 | Z71: 8.285949286 | AA71: -6.983979087 | AB71: -16.68888387 | AC71: 1.555770699 | AD71: 4868
C72: =(E74-E70)/(#REF!-#REF!) ->  | D72: =(E74-E70)/(#REF!-#REF!) ->  | E72: 0.57 | S72: 57 | T72: 114 | U72: 5.196457472 | V72: -2.988686605 | W72: -1.907991405 | X72: 6.523299357 | Y72: 0.8522435579 | Z72: 4.362114133 | AA72: 0.5170578733 | AB72: 202.3343356 | AC72: 0.3773405067 | AD72: 2893
C73: =(E75-E71)/(#REF!-#REF!) ->  | D73: =(E75-E71)/(#REF!-#REF!) ->  | E73: 0.58 | S73: 58 | T73: 190 | U73: 1.40346316 | V73: -4.341495379 | W73: -0.6410357799 | X73: -1613.248202 | Y73: -0.01796174374 | Z73: 1.867719954 | AA73: -1.196389508 | AB73: -175.5883209 | AC73: 61.1814423 | AD73: 4793
C74: =(E76-E72)/(#REF!-#REF!) ->  | D74: =(E76-E72)/(#REF!-#REF!) ->  | E74: 0.59 | S74: 59 | T74: 159 | U74: 11.45217236 | V74: -3.498934306 | W74: -1.451594635 | X74: -2.100972492e-06 | Y74: -80.4609208 | Z74: 1.34464753e-08 | AA74: 51.82901121 | AB74: 1.738334211 | AC74: 1.861265765 | AD74: 4018
C75: =(E77-E73)/(#REF!-#REF!) ->  | D75: =(E77-E73)/(#REF!-#REF!) ->  | E75: 0.6 | S75: 60 | T75: 135 | U75: 1.588011595 | V75: -1.225040875 | W75: -62.97483339 | X75: 240.7113265 | Y75: 0.1663969491 | Z75: 1.426591798 | AA75: 0.6542301337 | AB75: 1.709795058 | AC75: 216.9921875 | AD75: 3418
C76: =(E78-E74)/(#REF!-#REF!) ->  | D76: =(E78-E74)/(#REF!-#REF!) ->  | E76: 0.61 | S76: 61 | T76: 122 | U76: 4.984707332 | V76: -2.928066488 | W76: -1.991125867 | X76: 0.4008569816 | Y76: 1.957386298 | Z76: 6.807177892 | AA76: 4.382437253 | AB76: 25.07259799 | AC76: 1.024958652 | AD76: 3093
C77: =(E79-E75)/(#REF!-#REF!) ->  | D77: =(E79-E75)/(#REF!-#REF!) ->  | E77: 0.62 | S77: 62 | T77: 220 | U77: 1.975603166 | V77: -3.267597669 | W77: -1.04643369 | X77: 4.330871611 | Y77: 1.539724189 | Z77: 0.9565196366 | AA77: -1.558239187 | AB77: -128.8316556 | AC77: 26.5379361 | AD77: 5543
C78: =(E80-E76)/(#REF!-#REF!) ->  | D78: =(E80-E76)/(#REF!-#REF!) ->  | E78: 0.63 | S78: 63 | T78: 268 | U78: 5.007873662 | V78: -2.923218413 | W78: -1.981259395 | X78: 0.2693222761 | Y78: 2.111076119 | Z78: 7.509185733 | AA78: 23.50861521 | AB78: 4.890437821 | AC78: 1.209014957 | AD78: 6743
C79: =(E81-E77)/(#REF!-#REF!) ->  | D79: =(E81-E77)/(#REF!-#REF!) ->  | E79: 0.64 | S79: 64 | T79: 159 | U79: 1.29689261 | V79: -4.420798821 | W79: -0.6167658758 | X79: -4463.489791 | Y79: -0.00673259202 | Z79: 1.848779711 | AA79: -1.195067 | AB79: -106.3737487 | AC79: 71.27356783 | AD79: 4018
C80: =(E82-E78)/(#REF!-#REF!) ->  | D80: =(E82-E78)/(#REF!-#REF!) ->  | E80: 0.65 | S80: 65 | T80: 104 | U80: 5.202236014 | V80: -3.023204483 | W80: -1.802587704 | X80: 0.7373057981 | Y80: 1.577131817 | Z80: 6.836230152 | AA80: 8.674183247 | AB80: 13.35008752 | AC80: 1.105829249 | AD80: 2643
C81: =(E83-E79)/(#REF!-#REF!) ->  | D81: =(E83-E79)/(#REF!-#REF!) ->  | E81: 0.66 | S81: 66 | T81: 101 | U81: 5.119781583 | V81: -2.993158456 | W81: -1.913774084 | X81: 0.1420103001 | Y81: 2.543422885 | Z81: 5.831395631 | AA81: 20.89978407 | AB81: 5.174155172 | AC81: 1.304262728 | AD81: 2568
C82: =(E84-E80)/(#REF!-#REF!) ->  | D82: =(E84-E80)/(#REF!-#REF!) ->  | E82: 0.67 | S82: 67 | T82: 87 | U82: 4.928039987 | V82: -2.8278984 | W82: -2.033750207 | X82: 0.08996402303 | Y82: 2.460923251 | Z82: 12.46251172 | AA82: -2.096868517 | AB82: -66.5694279 | AC82: 2.606915344 | AD82: 2218
C83: =(E85-E81)/(#REF!-#REF!) ->  | D83: =(E85-E81)/(#REF!-#REF!) ->  | E83: 0.68 | S83: 68 | T83: 216 | U83: 1.277704792 | V83: -4.472032928 | W83: -0.6040862308 | X83: -79712.72539 | Y83: -0.0003920162202 | Z83: 1.782548832 | AA83: -1.195787201 | AB83: -104.3421099 | AC83: 73.47065542 | AD83: 5443
C84: =(E86-E82)/(#REF!-#REF!) ->  | D84: =(E86-E82)/(#REF!-#REF!) ->  | E84: 0.69 | S84: 69 | T84: 126 | U84: 1.99438128 | V84: -4.49646072 | W84: -0.6229234453 | X84: -15456.24791 | Y84: -0.02641418855 | Z84: 0.1082509662 | AA84: -1.349918427 | AB84: -64.0192788 | AC84: 43.74563176 | AD84: 3193
C85: =(E87-E83)/(#REF!-#REF!) ->  | D85: =(E87-E83)/(#REF!-#REF!) ->  | E85: 0.7 | S85: 70 | T85: 215 | U85: 2.060734418 | V85: 9.932246307 | W85: 0.1317791715 | X85: 278.418079 | Y85: 0.1176722259 | Z85: 1.979634446 | AA85: -1.152232427 | AB85: -37.93374513 | AC85: 8.983119533e+14 | AD85: 5418
C86: =(E88-E84)/(#REF!-#REF!) ->  | D86: =(E88-E84)/(#REF!-#REF!) ->  | E86: 0.71 | S86: 71 | T86: 96 | U86: 6.842306676 | V86: -2.122339465 | W86: -2.655468705 | X86: 0.9870971704 | Y86: 1.119101389 | Z86: 49.07767215 | AA86: -58.2686179 | AB86: -2.448655798 | AC86: 1.066367571 | AD86: 2443
C87: =(E89-E85)/(#REF!-#REF!) ->  | D87: =(E89-E85)/(#REF!-#REF!) ->  | E87: 0.72 | S87: 72 | T87: 140 | U87: 1.465721163 | V87: -3.915638521 | W87: -0.7603050652 | X87: -2391.513617 | Y87: -0.01295189434 | Z87: 1.765945893 | AA87: -1.142315122 | AB87: -122.2202047 | AC87: 61.12702737 | AD87: 3543
C88: =(E90-E86)/(#REF!-#REF!) ->  | D88: =(E90-E86)/(#REF!-#REF!) ->  | E88: 0.73 | S88: 73 | T88: 100 | U88: 4.09185177 | V88: -4.64789416 | W88: -0.5913076946 | X88: -0.5895666936 | Y88: -10.02180902 | Z88: 472.1584252 | AA88: -1.46212295 | AB88: -193.0994769 | AC88: 5.884417026 | AD88: 2543
C89: =(E91-E87)/(#REF!-#REF!) ->  | D89: =(E91-E87)/(#REF!-#REF!) ->  | E89: 0.74 | S89: 74 | T89: 219 | U89: 4.996327238 | V89: -2.924264736 | W89: -1.989054845 | X89: 0.3216199148 | Y89: 2.04146078 | Z89: 7.239194468 | AA89: 7.247016918 | AB89: 15.69824966 | AC89: 1.091804026 | AD89: 5518
C90: =(E92-E88)/(#REF!-#REF!) ->  | D90: =(E92-E88)/(#REF!-#REF!) ->  | E90: 0.75 | S90: 75 | T90: 219 | U90: 3.873829949 | V90: -3.823471305 | W90: -0.882589783 | X90: -42672.94248 | Y90: -0.001202129332 | Z90: 0.3542595831 | AA90: -1.676263033 | AB90: -74.11227601 | AC90: 18.93255961 | AD90: 5518
C91: =(E93-E89)/(#REF!-#REF!) ->  | D91: =(E93-E89)/(#REF!-#REF!) ->  | E91: 0.76 | S91: 76 | T91: 117 | U91: 5.548925522 | V91: -3.911002214 | W91: -0.8923487814 | X91: -1.855806926e-07 | Y91: -164.612607 | Z91: 1.71424125e-07 | AA91: -1.774280475 | AB91: -133.0402719 | AC91: 14.06517569 | AD91: 2968
C92: =(E94-E90)/(#REF!-#REF!) ->  | D92: =(E94-E90)/(#REF!-#REF!) ->  | E92: 0.77 | S92: 77 | T92: 190 | U92: 5.015892363 | V92: -2.926030622 | W92: -1.962053272 | X92: 0.1587543657 | Y92: 2.336748809 | Z92: 8.156521105 | AA92: -7.090516546 | AB92: -16.46537552 | AC92: 1.547613414 | AD92: 4793
C93: =(E95-E91)/(#REF!-#REF!) ->  | D93: =(E95-E91)/(#REF!-#REF!) ->  | E93: 0.78 | S93: 78 | T93: 212 | U93: 5.543211608 | V93: -3.860493567 | W93: -0.9211108313 | X93: -0.1842159399 | Y93: -0.4955662932 | Z93: 4.227819757e-10 | AA93: -1.758667594 | AB93: -133.4478298 | AC93: 13.60273299 | AD93: 5343
C94: =(E96-E92)/(#REF!-#REF!) ->  | D94: =(E96-E92)/(#REF!-#REF!) ->  | E94: 0.79 | S94: 79 | T94: 232 | U94: 1.561930309 | V94: -1.210592779 | W94: -58.01158462 | X94: 259.7350288 | Y94: 0.1605257049 | Z94: 1.386291747 | AA94: 0.6966506127 | AB94: 1.658760635 | AC94: 219.7208757 | AD94: 5843
C95: =(E97-E93)/(#REF!-#REF!) ->  | D95: =(E97-E93)/(#REF!-#REF!) ->  | E95: 0.8 | S95: 80 | T95: 86 | U95: 7.416687665 | V95: -3.608896532 | W95: -1.000290957 | X95: -18.54131424 | Y95: -0.1456363653 | Z95: 30.05799264 | AA95: -2.125425177 | AB95: -128.0499215 | AC95: 1.292604645 | AD95: 2193
C96: =(E98-E94)/(#REF!-#REF!) ->  | D96: =(E98-E94)/(#REF!-#REF!) ->  | E96: 0.81 | S96: 81 | T96: 168 | U96: 7.186842903 | V96: -0.7682848265 | W96: -7.794246464 | X96: 9.507216141 | Y96: 0.2956329027 | Z96: 149.8224348 | AA96: 86.05317414 | AB96: 1.562265453 | AC96: 1.075322866 | AD96: 4243
C97: =(E99-E95)/(#REF!-#REF!) ->  | D97: =(E99-E95)/(#REF!-#REF!) ->  | E97: 0.82 | S97: 82 | T97: 183 | U97: 4.429076756 | V97: -1.632070615 | W97: -3.407262015 | X97: 0.9414545219 | Y97: 0.8404018218 | Z97: 223.9499165 | AA97: -1.498997272 | AB97: -170.4168704 | AC97: 5.356637191 | AD97: 4618
C98: =(E100-E96)/(#REF!-#REF!) ->  | D98: =(E100-E96)/(#REF!-#REF!) ->  | E98: 0.83
C99: =(E101-E97)/(#REF!-#REF!) ->  | D99: =(E101-E97)/(#REF!-#REF!) ->  | E99: 0.84
C100: =(E102-E98)/(#REF!-#REF!) ->  | D100: =(E102-E98)/(#REF!-#REF!) ->  | E100: 0.85
C101: =(E103-E99)/(#REF!-#REF!) ->  | D101: =(E103-E99)/(#REF!-#REF!) ->  | E101: 0.86
C102: =(E104-E100)/(#REF!-#REF!) ->  | D102: =(E104-E100)/(#REF!-#REF!) ->  | E102: 0.87
C103: =(E105-E101)/(#REF!-#REF!) ->  | D103: =(E105-E101)/(#REF!-#REF!) ->  | E103: 0.88
C104: =(E106-E102)/(#REF!-#REF!) ->  | D104: =(E106-E102)/(#REF!-#REF!) ->  | E104: 0.89
C105: =(E107-E103)/(#REF!-#REF!) ->  | D105: =(E107-E103)/(#REF!-#REF!) ->  | E105: 0.9
C106: =(E108-E104)/(#REF!-#REF!) ->  | D106: =(E108-E104)/(#REF!-#REF!) ->  | E106: 0.91
C107: =(E109-E105)/(#REF!-#REF!) ->  | D107: =(E109-E105)/(#REF!-#REF!) ->  | E107: 0.92
C108: =(E110-E106)/(#REF!-#REF!) ->  | D108: =(E110-E106)/(#REF!-#REF!) ->  | E108: 0.93
C109: =(E111-E107)/(#REF!-#REF!) ->  | D109: =(E111-E107)/(#REF!-#REF!) ->  | E109: 0.94
C110: =(E112-E108)/(#REF!-#REF!) ->  | D110: =(E112-E108)/(#REF!-#REF!) ->  | E110: 0.95
C111: =(E113-E109)/(#REF!-#REF!) ->  | D111: =(E113-E109)/(#REF!-#REF!) ->  | E111: 0.96
C112: =(E114-E110)/(#REF!-#REF!) ->  | D112: =(E114-E110)/(#REF!-#REF!) ->  | E112: 0.97
C113: =(E115-E111)/(#REF!-#REF!) ->  | D113: =(E115-E111)/(#REF!-#REF!) ->  | E113: 0.98
C114: =(E116-E112)/(H116-#REF!) ->  | D114: =(E116-E112)/(U116-#REF!) ->  | E114: 0.99
E115: 1
G117: =AVERAGE(G16:G115) -> 131.9714286 | H117: =AVERAGE(H16:H115) -> 2.434427693 | Q117: =AVERAGE(Q16:Q115) -> 3342.285714 | T117: =AVERAGE(T16:T115) -> 157.0571429 | U117: =AVERAGE(U16:U115) -> 5.272775216 | AD117: =AVERAGE(AD16:AD115) -> 3969.428571 | AG117: =AVERAGE(AG16:AG115) ->  | AH117: =AVERAGE(AH16:AH115) ->  | AQ117: =AVERAGE(AQ16:AQ115) ->  | AT117: =AVERAGE(AT16:AT115) ->  | AU117: =AVERAGE(AU16:AU115) ->  | BD117: =AVERAGE(BD16:BD115) ->  | BG117: =AVERAGE(BG16:BG115) ->  | BH117: =AVERAGE(BH16:BH115) ->  | BQ117: =AVERAGE(BQ16:BQ115) ->  | BT117: =AVERAGE(BT16:BT115) ->  | BU117: =AVERAGE(BU16:BU115) ->  | CD117: =AVERAGE(CD16:CD115) -> 

Sheet Data
B2: Sample 6 | C2: PCL in AA
A4: Experimental Data
A5: Sample Length = | B5: 1
A6: Sample | B6: Strain | C6: Measured
A7: Time | B7: % | C7: Stress | D7: Modeled | E7: Time | F7: % | G7: Stress | H7: Modeled | I7: Time | J7: % | K7: Stress | L7: Modeled | M7: Time | N7: % | O7: Stress | P7: Modeled | Q7: Time | R7: % | S7: Stress | T7: Modeled
A8: Sec | B8: start with zero | D8: Stress | E8: Sec | F8: start with zero | H8: Stress | I8: Sec | J8: start with zero | L8: Stress | M8: Sec | N8: start with zero | P8: Stress | Q8: Sec | R8: start with zero | T8: Stress
A9: 0 | B9: 0 | C9: 0.008567968 | D9: 0
A10: 1 | B10: 3.126952 | C10: 0.2083013 | D10: 0.2884005721
A11: 2 | B11: 6.251562 | C11: 0.3347725 | D11: 0.4415992814
A12: 3 | B12: 9.37539 | C12: 0.4302374 | D12: 0.5322647456
A13: 4 | B13: 12.50039 | C13: 0.519834 | D13: 0.5931071383
A14: 5 | B14: 15.62656 | C14: 0.5898398 | D14: 0.6390907004
A15: 6 | B15: 18.75 | C15: 0.6508682 | D15: 0.6771736016
A16: 7 | B16: 21.87695 | C16: 0.715902 | D16: 0.7109967606
A17: 8 | B17: 25.00117 | C17: 0.7537364 | D17: 0.7421565175
A18: 9 | B18: 28.12578 | C18: 0.7957616 | D18: 0.7717243845
A19: 10 | B19: 31.25078 | C19: 0.8095224 | D19: 0.8002616942
A20: 11 | B20: 34.37617 | C20: 0.8314408 | D20: 0.8281146055
A21: 12 | B21: 37.50195 | C21: 0.84799 | D21: 0.8555077632
A22: 13 | B22: 40.62616 | C22: 0.8664177 | D22: 0.8825370977
A23: 14 | B23: 43.75156 | C23: 0.888005 | D23: 0.9093975807
A24: 15 | B24: 46.87655 | C24: 0.9154861 | D24: 0.9361101436
A25: 16 | B25: 50.00155 | C25: 0.9342331 | D25: 0.9627450073
A26: 16.002 | B26: 50.00819 | C26: 0.9344305 | D26: 0.9628111113
A27: 17.002 | B27: 49.99921 | C27: 0.8164133 | D27: 0.8936756123
A28: 18.002 | B28: 49.99921 | C28: 0.7849718 | D28: 0.8431740189
A29: 19.002 | B29: 49.99999 | C29: 0.7676136 | D29: 0.805897526
A30: 20.002 | B30: 49.99999 | C30: 0.7539393 | D30: 0.7781242108
A31: 21.002 | B31: 49.99999 | C31: 0.7409765 | D31: 0.7572393506
A32: 22.002 | B32: 49.99999 | C32: 0.7329303 | D32: 0.7413327581
A33: 23.002 | B33: 49.99999 | C33: 0.7210929 | D33: 0.7290258113
A34: 24.002 | B34: 49.99999 | C34: 0.7221919 | D34: 0.7193235146
A35: 25.002 | B35: 49.99999 | C35: 0.714148 | D35: 0.7115077325
A36: 26.002 | B36: 49.99999 | C36: 0.7052686 | D36: 0.7050601373
A37: 27.002 | B37: 49.99999 | C37: 0.7163447 | D37: 0.6996066016
A38: 28.002 | B38: 49.99999 | C38: 0.6997031 | D38: 0.6948770659
A39: 29.002 | B39: 49.99999 | C39: 0.6908036 | D39: 0.6906765766
A40: 30.002 | B40: 49.99999 | C40: 0.6862207 | D40: 0.6868643833
A41: 31.002 | B41: 49.99999 | C41: 0.6801506 | D41: 0.6833388545
A42: 32.002 | B42: 49.99999 | C42: 0.6824131 | D42: 0.6800265904
A43: 33.002 | B43: 49.99999 | C43: 0.674495 | D43: 0.6768745665
A44: 34.002 | B44: 49.99999 | C44: 0.6706812 | D44: 0.6738444635
A45: 35.002 | B45: 49.99999 | C45: 0.6744841 | D45: 0.6709085747
A46: 36.002 | B46: 49.99999 | C46: 0.6699266 | D46: 0.6680468534
A47: 37.002 | B47: 49.99999 | C47: 0.6675736 | D47: 0.665244781
A48: 38.002 | B48: 49.99999 | C48: 0.6624317 | D48: 0.6624918292
A49: 39.002 | B49: 49.99999 | C49: 0.6647494 | D49: 0.6597803496
A50: 40.002 | B50: 49.99999 | C50: 0.6535648 | D50: 0.6571047731
A51: 41.002 | B51: 49.99999 | C51: 0.6886513 | D51: 0.654461031
A52: 42.002 | B52: 49.99999 | C52: 0.6701456 | D52: 0.6518461382
A53: 43.002 | B53: 49.99999 | C53: 0.6555545 | D53: 0.6492578922
A54: 44.002 | B54: 49.99999 | C54: 0.6509947 | D54: 0.6466946551
A55: 45.002 | B55: 49.99999 | C55: 0.6502958 | D55: 0.6441551975
A56: 46.002 | B56: 49.99999 | C56: 0.6588305 | D56: 0.6416385847
A57: 47.002 | B57: 49.99999 | C57: 0.6383194 | D57: 0.6391440955
A58: 48.002 | B58: 49.99999 | C58: 0.6546335 | D58: 0.6366711628
A59: 49.002 | B59: 49.99999 | C59: 0.6311332 | D59: 0.6342193314
A60: 50.002 | B60: 49.99999 | C60: 0.6546316 | D60: 0.631788227
A61: 51.002 | B61: 49.99999 | C61: 0.6302963 | D61: 0.6293775341
A62: 52.002 | B62: 49.99999 | C62: 0.6421682 | D62: 0.6269869802
A63: 53.002 | B63: 49.99999 | C63: 0.6295171 | D63: 0.624616324
A64: 54.002 | B64: 49.99999 | C64: 0.6316574 | D64: 0.6222653471
A65: 55.002 | B65: 49.99999 | C65: 0.6302791 | D65: 0.6199338482
A66: 56.002 | B66: 49.99999 | C66: 0.6300483 | D66: 0.6176216383
A67: 57.002 | B67: 49.99999 | C67: 0.6233236 | D67: 0.6153285381
A68: 58.002 | B68: 49.99999 | C68: 0.63486 | D68: 0.6130543753
A69: 59.002 | B69: 49.99999 | C69: 0.6175015 | D69: 0.6107989833
A70: 60.002 | B70: 49.99999 | C70: 0.619574 | D70: 0.6085621996
A71: 61.002 | B71: 49.99999 | C71: 0.6220672 | D71: 0.6063438653
A72: 62.002 | B72: 49.99999 | C72: 0.6157131 | D72: 0.6041438244
A73: 63.002 | B73: 49.99999 | C73: 0.6199603 | D73: 0.6019619231
A74: 64.002 | B74: 49.99999 | C74: 0.6114514 | D74: 0.59979801
A75: 65.002 | B75: 49.99999 | C75: 0.6141284 | D75: 0.5976519353
A76: 66.002 | B76: 49.99999 | C76: 0.609399 | D76: 0.5955235509
A77: 67.002 | B77: 49.99999 | C77: 0.6082166 | D77: 0.5934127101
A78: 68.002 | B78: 49.99999 | C78: 0.6117229 | D78: 0.5913192679
A79: 69.002 | B79: 49.99999 | C79: 0.6119592 | D79: 0.5892430803
A80: 70.002 | B80: 49.99999 | C80: 0.5718204 | D80: 0.587184005
A81: 71.002 | B81: 49.99999 | C81: 0.5878124 | D81: 0.5851419007
A82: 72.002 | B82: 49.99999 | C82: 0.594554 | D82: 0.5831166273
A83: 73.002 | B83: 49.99999 | C83: 0.5844687 | D83: 0.581108046
A84: 74.002 | B84: 49.99999 | C84: 0.5917341 | D84: 0.5791160192
A85: 75.002 | B85: 49.99999 | C85: 0.5882951 | D85: 0.5771404104
A86: 76.002 | B86: 49.99999 | C86: 0.5901478 | D86: 0.5751810842
A87: 77.002 | B87: 49.99999 | C87: 0.5891715 | D87: 0.5732379064
A88: 78.002 | B88: 49.99999 | C88: 0.5924979 | D88: 0.5713107438
A89: 79.002 | B89: 49.99999 | C89: 0.5904267 | D89: 0.5693994646
A90: 80.002 | B90: 49.99999 | C90: 0.5885689 | D90: 0.5675039376
A91: 81.002 | B91: 49.99999 | C91: 0.5899585 | D91: 0.5656240332
A92: 82.002 | B92: 49.99999 | C92: 0.5853913 | D92: 0.5637596226
A93: 83.002 | B93: 49.99999 | C93: 0.5860416 | D93: 0.561910578
A94: 84.002 | B94: 49.99999 | C94: 0.5847362 | D94: 0.5600767728
A95: 85.002 | B95: 49.99999 | C95: 0.5933725 | D95: 0.5582580814
A96: 86.002 | B96: 49.99999 | C96: 0.5861227 | D96: 0.5564543792
A97: 87.002 | B97: 49.99999 | C97: 0.5800852 | D97: 0.5546655427
A98: 88.002 | B98: 49.99999 | C98: 0.5869427 | D98: 0.5528914495
A99: 89.002 | B99: 49.99999 | C99: 0.5802239 | D99: 0.5511319778
A100: 90.002 | B100: 49.99999 | C100: 0.5844694 | D100: 0.5493870074
A101: 91.002 | B101: 49.99999 | C101: 0.5776393 | D101: 0.5476564186
A102: 92.002 | B102: 49.99999 | C102: 0.5759379 | D102: 0.5459400929
A103: 93.002 | B103: 49.99999 | C103: 0.5820541 | D103: 0.5442379127
A104: 94.002 | B104: 49.99999 | C104: 0.5779876 | D104: 0.5425497615
A105: 95.002 | B105: 49.99999 | C105: 0.5907613 | D105: 0.5408755237
A106: 96.002 | B106: 49.99999 | C106: 0.5807903 | D106: 0.5392150846
A107: 97.002 | B107: 49.99999 | C107: 0.571085 | D107: 0.5375683304
A108: 98.002 | B108: 49.99999 | C108: 0.5823692 | D108: 0.5359351484
A109: 99.002 | B109: 49.99999 | C109: 0.6118079 | D109: 0.5343154266
A110: 100.002 | B110: 49.99999 | C110: 0.5606851 | D110: 0.5327090543
A111: 101.002 | B111: 49.99999 | C111: 0.5835261 | D111: 0.5311159213
A112: 102.002 | B112: 49.99999 | C112: 0.5670122 | D112: 0.5295359185
A113: 103.002 | B113: 49.99999 | C113: 0.5795888 | D113: 0.5279689378
A114: 104.002 | B114: 49.99999 | C114: 0.5611466 | D114: 0.5264148717
A115: 105.002 | B115: 49.99999 | C115: 0.5558957 | D115: 0.5248736139
A116: 106.002 | B116: 49.99999 | C116: 0.575981 | D116: 0.5233450588
A117: 107.002 | B117: 49.99999 | C117: 0.5671638 | D117: 0.5218291017
A118: 108.002 | B118: 49.99999 | C118: 0.5621381 | D118: 0.5203256388
A119: 109.002 | B119: 49.99999 | C119: 0.5709788 | D119: 0.518834567
A120: 110.002 | B120: 49.99999 | C120: 0.5375609 | D120: 0.5173557843
A121: 111.002 | B121: 49.99999 | C121: 0.5664159 | D121: 0.5158891894
A122: 112.002 | B122: 49.99999 | C122: 0.5512905 | D122: 0.5144346819
A123: 113.002 | B123: 49.99999 | C123: 0.5740315 | D123: 0.512992162
A124: 114.002 | B124: 49.99999 | C124: 0.5548775 | D124: 0.5115615311
A125: 115.002 | B125: 49.99999 | C125: 0.5510933 | D125: 0.510142691
A126: 116.002 | B126: 49.99999 | C126: 0.5599098 | D126: 0.5087355448
A127: 116.004 | B127: 49.99999 | C127: 0.5598091 | D127: 0.5087327421
A128: 117.004 | B128: 53.12616 | C128: 0.8479641 | D128: 0.723764978
A129: 118.004 | B129: 56.25039 | C129: 0.9024241 | D129: 0.851350491
A130: 119.004 | B130: 59.37656 | C130: 0.9553882 | D130: 0.9356620078
A131: 120.004 | B131: 62.50194 | C131: 0.978822 | D131: 0.9972426847
A132: 121.004 | B132: 65.62577 | C132: 1.030329 | D132: 1.046173666
A133: 122.004 | B133: 68.74999 | C133: 1.069741 | D133: 1.08770425
A134: 123.004 | B134: 71.87695 | C134: 1.104758 | D134: 1.12471885
A135: 124.004 | B135: 75.00156 | C135: 1.137249 | D135: 1.158647201
A136: 125.004 | B136: 78.12655 | C136: 1.179776 | D136: 1.190603466
A137: 126.004 | B137: 81.2496 | C137: 1.214299 | D137: 1.221143662
A138: 127.004 | B138: 84.37655 | C138: 1.253299 | D138: 1.250927273
A139: 128.004 | B139: 87.50194 | C139: 1.294571 | D139: 1.280018004
A140: 129.004 | B140: 90.62654 | C140: 1.271863 | D140: 1.308671867
A141: 130.004 | B141: 93.74998 | C141: 1.348179 | D141: 1.337030838
A142: 131.004 | B142: 96.87733 | C142: 1.365296 | D142: 1.365412468
A143: 132.004 | B143: 100.0019 | C143: 1.426551 | D143: 1.393593026
A144: 132.006 | B144: 100.0082 | C144: 1.426285 | D144: 1.393651129
A145: 133.006 | B145: 99.99921 | C145: 1.200619 | D145: 1.292580913
A146: 134.006 | B146: 99.99921 | C146: 1.151045 | D146: 1.219128375
A147: 135.006 | B147: 99.99921 | C147: 1.124413 | D147: 1.165263202
A148: 136.006 | B148: 99.99998 | C148: 1.10117 | D148: 1.125574711
A149: 137.006 | B149: 99.99998 | C149: 1.088964 | D149: 1.096059299
A150: 138.006 | B150: 99.99998 | C150: 1.072771 | D150: 1.073924113
A151: 139.006 | B151: 99.99998 | C151: 1.060541 | D151: 1.057122046
A152: 140.006 | B152: 99.99998 | C152: 1.045591 | D152: 1.04417566
A153: 141.006 | B153: 99.99998 | C153: 1.038318 | D153: 1.034018647
A154: 142.006 | B154: 99.99998 | C154: 1.025682 | D154: 1.025881404
A155: 143.006 | B155: 99.99998 | C155: 1.018886 | D155: 1.019208464
A156: 144.006 | B156: 99.99998 | C156: 1.012187 | D156: 1.013598894
A157: 145.006 | B157: 99.99998 | C157: 1.009269 | D157: 1.00876329
A158: 146.006 | B158: 99.99998 | C158: 1.002851 | D158: 1.004492739
A159: 147.006 | B159: 99.99998 | C159: 0.9961135 | D159: 1.000636416
A160: 148.006 | B160: 99.99998 | C160: 0.9892497 | D160: 0.9970854188
A161: 149.006 | B161: 99.99998 | C161: 0.9838813 | D161: 0.9937611022
A162: 150.006 | B162: 99.99998 | C162: 0.9862158 | D162: 0.9906066556
A163: 151.006 | B163: 99.99998 | C163: 0.9716835 | D163: 0.9875810278
A164: 152.006 | B164: 99.99998 | C164: 0.9671997 | D164: 0.9846545412
A165: 153.006 | B165: 99.99998 | C165: 0.962113 | D165: 0.9818057268
A166: 154.006 | B166: 99.99998 | C166: 0.9673333 | D166: 0.9790190403
A167: 155.006 | B167: 99.99998 | C167: 0.9585741 | D167: 0.9762832134
A168: 156.006 | B168: 99.99998 | C168: 0.955682 | D168: 0.9735900641
A169: 157.006 | B169: 99.99998 | C169: 0.9581714 | D169: 0.9709336386
A170: 158.006 | B170: 99.99998 | C170: 0.951628 | D170: 0.9683095909
A171: 159.006 | B171: 99.99998 | C171: 0.9498565 | D171: 0.9657147365
A172: 160.006 | B172: 99.99998 | C172: 0.9516433 | D172: 0.9631467289
A173: 161.006 | B173: 99.99998 | C173: 0.9479677 | D173: 0.960603827
A174: 162.006 | B174: 99.99998 | C174: 0.9441166 | D174: 0.9580847273
A175: 163.006 | B175: 99.99998 | C175: 0.9419678 | D175: 0.955588442
A176: 164.006 | B176: 99.99998 | C176: 0.9321551 | D176: 0.9531142117
A177: 165.006 | B177: 99.99998 | C177: 0.9354671 | D177: 0.9506614426
A178: 166.006 | B178: 99.99998 | C178: 0.9393124 | D178: 0.9482296601
A179: 167.006 | B179: 99.99998 | C179: 0.928246 | D179: 0.9458184766
A180: 168.006 | B180: 99.99998 | C180: 0.9346644 | D180: 0.9434275674
A181: 169.006 | B181: 99.99998 | C181: 0.9254974 | D181: 0.9410566535
A182: 170.006 | B182: 99.99998 | C182: 0.9256913 | D182: 0.9387054894
A183: 171.006 | B183: 99.99998 | C183: 0.9183354 | D183: 0.9363738541
A184: 172.006 | B184: 99.99998 | C184: 0.9199295 | D184: 0.9340615446
A185: 173.006 | B185: 99.99998 | C185: 0.9227009 | D185: 0.9317683713
A186: 174.006 | B186: 99.99998 | C186: 0.9057028 | D186: 0.9294941546
A187: 175.006 | B187: 99.99998 | C187: 0.9178727 | D187: 0.9272387224
A188: 176.006 | B188: 99.99998 | C188: 0.9059601 | D188: 0.9250019085
A189: 177.006 | B189: 99.99998 | C189: 0.9263373 | D189: 0.9227835513
A190: 178.006 | B190: 99.99998 | C190: 0.8973185 | D190: 0.9205834927
A191: 179.006 | B191: 99.99998 | C191: 0.9064091 | D191: 0.9184015775
A192: 180.006 | B192: 99.99998 | C192: 0.9043292 | D192: 0.9162376532
A193: 181.006 | B193: 99.99998 | C193: 0.8949793 | D193: 0.9140915693
A194: 182.006 | B194: 99.99998 | C194: 0.8945232 | D194: 0.9119631771
A195: 183.006 | B195: 99.99998 | C195: 0.9009212 | D195: 0.9098523296
A196: 184.006 | B196: 99.99998 | C196: 0.895257 | D196: 0.9077588814
A197: 185.006 | B197: 99.99998 | C197: 0.8917789 | D197: 0.9056826884
A198: 186.006 | B198: 99.99998 | C198: 0.8922161 | D198: 0.9036236081
A199: 187.006 | B199: 99.99998 | C199: 0.8860598 | D199: 0.9015814991
A200: 188.006 | B200: 99.99998 | C200: 0.888845 | D200: 0.8995562213
A201: 189.006 | B201: 99.99998 | C201: 0.8847728 | D201: 0.8975476358
A202: 190.006 | B202: 99.99998 | C202: 0.8756853 | D202: 0.8955556048
... 289 more rows

Sheet Sheet2
K1: ETCHED | O1: ETCHED | S1: ETCHED
C2: Strain | D2: avg | F2: Rahul | K2: SAMPLE 1.2 | O2: SAMPLE 1.3 | S2: SAMPLE 1.4
B3: 1 | C3: at | D3: strain in | E3: Exptl | F3: 3K Model
A4: time | B4: e-rate | C4: begin | D4: interval | E4: stress | F4: stress | K4: Time (s) | L4: Strain (%) | M4: Stress (MPa) | N4: Strain (%) | O4: Time (s) | P4: Strain (%) | Q4: Stress (MPa) | R4: Strain (%) | S4: Time (s) | T4: Strain (%) | U4: Stress (MPa) | V4: Strain (%)
A5: 0 | B5: 1 | C5: 0 | D5: 0.5 | E5: 0.008568 | F5: 0 | K5: 0 | L5: 0 | M5: 0.000742758 | N5: 0 | O5: 0 | P5: 0 | Q5: 0.000354308 | R5: 0 | S5: 0 | T5: 0 | U5: -0.002899995 | V5: 0
A6: 1 | B6: 1 | C6: 1 | D6: 1.5 | E6: 0.2083 | F6: 0.2149 | K6: 1 | L6: 3.124218 | M6: 0.2364365 | N6: 3.124218 | O6: 1 | P6: 3.124609 | Q6: 0.2326449 | R6: 3.124609 | S6: 1 | T6: 3.124999 | U6: 0.217016 | V6: 3.124999
A7: 2 | B7: 1 | C7: 2 | D7: 2.5 | E7: 0.3348 | F7: 0.351 | K7: 2 | L7: 6.249608 | M7: 0.3272564 | N7: 6.249608 | O7: 2 | P7: 6.25039 | Q7: 0.3082603 | R7: 6.25039 | S7: 2 | T7: 6.25039 | U7: 0.3110721 | V7: 6.25039
A8: 3 | B8: 1 | C8: 3 | D8: 3.5 | E8: 0.4302 | F8: 0.4435 | K8: 3 | L8: 9.374217 | M8: 0.3802411 | N8: 9.374217 | O8: 3 | P8: 9.37539 | Q8: 0.4069945 | R8: 9.37539 | S8: 3 | T8: 9.374217 | U8: 0.37777 | V8: 9.374217
A9: 4 | B9: 1 | C9: 4 | D9: 4.5 | E9: 0.5198 | F9: 0.5119 | K9: 4 | L9: 12.49961 | M9: 0.4739141 | N9: 12.49961 | O9: 4 | P9: 12.49883 | Q9: 0.4787088 | R9: 12.49883 | S9: 4 | T9: 12.5 | U9: 0.4572043 | V9: 12.5
A10: 5 | B10: 1 | C10: 5 | D10: 5.5 | E10: 0.5898 | F10: 0.5668 | K10: 5 | L10: 15.625 | M10: 0.5222613 | N10: 15.625 | O10: 5 | P10: 15.625 | Q10: 0.5532387 | R10: 15.625 | S10: 5 | T10: 15.62578 | U10: 0.5454739 | V10: 15.62578
A11: 6 | B11: 1 | C11: 6 | D11: 6.5 | E11: 0.6509 | F11: 0.6144 | K11: 6 | L11: 18.74843 | M11: 0.6002656 | N11: 18.74843 | O11: 6 | P11: 18.74883 | Q11: 0.6206431 | R11: 18.74883 | S11: 6 | T11: 18.74922 | U11: 0.5954816 | V11: 18.74922
A12: 7 | B12: 1 | C12: 7 | D12: 7.5 | E12: 0.7159 | F12: 0.6579 | K12: 7 | L12: 21.87461 | M12: 0.6433169 | N12: 21.87461 | O12: 7 | P12: 21.87461 | Q12: 0.6775009 | R12: 21.87461 | S12: 7 | T12: 21.87539 | U12: 0.6488767 | V12: 21.87539
A13: 8 | B13: 1 | C13: 8 | D13: 8.5 | E13: 0.7537 | F13: 0.6992 | K13: 8 | L13: 24.99999 | M13: 0.6941926 | N13: 24.99999 | O13: 8 | P13: 24.99961 | Q13: 0.7407863 | R13: 24.99961 | S13: 8 | T13: 25.00039 | U13: 0.7214041 | V13: 25.00039
A14: 9 | B14: 1 | C14: 9 | D14: 9.5 | E14: 0.7958 | F14: 0.7392 | K14: 9 | L14: 28.12539 | M14: 0.7554994 | N14: 28.12539 | O14: 9 | P14: 28.12461 | Q14: 0.7980283 | R14: 28.12461 | S14: 9 | T14: 28.12539 | U14: 0.7955056 | V14: 28.12539
A15: 10 | B15: 1 | C15: 10 | D15: 10.5 | E15: 0.8095 | F15: 0.7785 | K15: 10 | L15: 31.25 | M15: 0.8126009 | N15: 31.25 | O15: 10 | P15: 31.25039 | Q15: 0.852179 | R15: 31.25039 | S15: 10 | T15: 31.25039 | U15: 0.8587291 | V15: 31.25039
A16: 11 | B16: 1 | C16: 11 | D16: 11.5 | E16: 0.8314 | F16: 0.8174 | K16: 11 | L16: 34.3746 | M16: 0.8674139 | N16: 34.3746 | O16: 11 | P16: 34.3746 | Q16: 0.9176584 | R16: 34.3746 | S16: 11 | T16: 34.37578 | U16: 0.9326708 | V16: 34.37578
A17: 12 | B17: 1 | C17: 12 | D17: 12.5 | E17: 0.848 | F17: 0.8561 | K17: 12 | L17: 37.49961 | M17: 0.9289063 | N17: 37.49961 | O17: 12 | P17: 37.49961 | Q17: 0.9838116 | R17: 37.49961 | S17: 12 | T17: 37.50156 | U17: 0.9927233 | V17: 37.50156
A18: 13 | B18: 1 | C18: 13 | D18: 13.5 | E18: 0.8664 | F18: 0.8947 | K18: 13 | L18: 40.62382 | M18: 0.9879139 | N18: 40.62382 | O18: 13 | P18: 40.62538 | Q18: 1.045423 | R18: 40.62538 | S18: 13 | T18: 40.62616 | U18: 1.052702 | V18: 40.62616
A19: 14 | B19: 1 | C19: 14 | D19: 14.5 | E19: 0.888 | F19: 0.9332 | K19: 14 | L19: 43.75038 | M19: 1.055101 | N19: 43.75038 | O19: 14 | P19: 43.7496 | Q19: 1.107731 | R19: 43.7496 | S19: 14 | T19: 43.74921 | U19: 1.1195 | V19: 43.74921
A20: 15 | B20: 1 | C20: 15 | D20: 15.5 | E20: 0.9155 | F20: 0.9717 | K20: 15 | L20: 46.87421 | M20: 1.088935 | N20: 46.87421 | O20: 15 | P20: 46.87499 | Q20: 1.15408 | R20: 46.87499 | S20: 15 | T20: 46.87577 | U20: 1.159832 | V20: 46.87577
A21: 16 | B21: 1 | C21: 16 | D21: 16.5 | E21: 0.9342 | F21: 1.0101 | K21: 16 | L21: 49.99999 | M21: 1.146515 | N21: 49.99999 | O21: 16 | P21: 49.99999 | Q21: 1.217418 | R21: 49.99999 | S21: 16 | T21: 49.99999 | U21: 1.212066 | V21: 49.99999
A22: 17 | B22: 0 | C22: 17 | D22: 17 | E22: 0.8164 | F22: 0.8677 | K22: 16.002 | L22: 50.00624 | M22: 1.146665 | N22: 50.00624 | O22: 16.002 | P22: 50.00585 | Q22: 1.21744 | R22: 50.00585 | S22: 16.002 | T22: 50.00624 | U22: 1.211796 | V22: 50.00624
A23: 18 | B23: 0 | C23: 17 | D23: 17 | E23: 0.785 | F23: 0.7895 | K23: 16.004 | L23: 50.01288 | M23: 1.146901 | N23: 50.01288 | O23: 16.004 | P23: 50.0121 | Q23: 1.217409 | R23: 50.0121 | S23: 16.004 | T23: 50.01249 | U23: 1.21168 | V23: 50.01249
A24: 19 | B24: 0 | C24: 17 | D24: 17 | E24: 0.7676 | F24: 0.7458 | K24: 17.004 | L24: 50.00546 | M24: 1.069584 | N24: 50.00546 | O24: 17.004 | P24: 50.00507 | Q24: 1.141387 | R24: 50.00507 | S24: 17.004 | T24: 50.00546 | U24: 1.139964 | V24: 50.00546
A25: 20 | B25: 0 | C25: 17 | D25: 17 | E25: 0.7539 | F25: 0.721 | K25: 18.004 | L25: 50.00546 | M25: 1.055136 | N25: 50.00546 | O25: 18.004 | P25: 50.00507 | Q25: 1.122369 | R25: 50.00507 | S25: 18.004 | T25: 50.00546 | U25: 1.124867 | V25: 50.00546
A26: 21 | B26: 0 | C26: 17 | D26: 17 | E26: 0.741 | F26: 0.7066 | K26: 19.004 | L26: 50.00624 | M26: 1.044025 | N26: 50.00624 | O26: 19.004 | P26: 50.00585 | Q26: 1.115624 | R26: 50.00585 | S26: 19.004 | T26: 50.00624 | U26: 1.111571 | V26: 50.00624
A27: 22 | B27: 0 | C27: 17 | D27: 17 | E27: 0.7329 | F27: 0.698 | K27: 20.004 | L27: 50.00624 | M27: 1.038895 | N27: 50.00624 | O27: 20.004 | P27: 50.00624 | Q27: 1.102929 | R27: 50.00624 | S27: 20.004 | T27: 50.00624 | U27: 1.11609 | V27: 50.00624
A28: 23 | B28: 0 | C28: 17 | D28: 17 | E28: 0.7211 | F28: 0.6925 | K28: 21.004 | L28: 50.00624 | M28: 1.041645 | N28: 50.00624 | O28: 21.004 | P28: 50.00624 | Q28: 1.09578 | R28: 50.00624 | S28: 21.004 | T28: 50.00624 | U28: 1.107966 | V28: 50.00624
A29: 24 | B29: 0 | C29: 17 | D29: 17 | E29: 0.7222 | F29: 0.6887 | K29: 22.004 | L29: 50.00624 | M29: 1.038635 | N29: 50.00624 | O29: 22.004 | P29: 50.00624 | Q29: 1.087632 | R29: 50.00624 | S29: 22.004 | T29: 50.00624 | U29: 1.100351 | V29: 50.00624
A30: 25 | B30: 0 | C30: 17 | D30: 17 | E30: 0.7141 | F30: 0.686 | K30: 23.004 | L30: 50.00624 | M30: 1.033499 | N30: 50.00624 | O30: 23.004 | P30: 50.00624 | Q30: 1.080927 | R30: 50.00624 | S30: 23.004 | T30: 50.00624 | U30: 1.093536 | V30: 50.00624
A31: 26 | B31: 0 | C31: 17 | D31: 17 | E31: 0.7053 | F31: 0.6837 | K31: 24.004 | L31: 50.00624 | M31: 1.029283 | N31: 50.00624 | O31: 24.004 | P31: 50.00624 | Q31: 1.07283 | R31: 50.00624 | S31: 24.004 | T31: 50.00624 | U31: 1.087112 | V31: 50.00624
A32: 27 | B32: 0 | C32: 17 | D32: 17 | E32: 0.7163 | F32: 0.6817 | K32: 25.004 | L32: 50.00624 | M32: 1.022993 | N32: 50.00624 | O32: 25.004 | P32: 50.00624 | Q32: 1.06734 | R32: 50.00624 | S32: 25.004 | T32: 50.00624 | U32: 1.081595 | V32: 50.00624
A33: 28 | B33: 0 | C33: 17 | D33: 17 | E33: 0.6997 | F33: 0.68 | K33: 26.004 | L33: 50.00624 | M33: 1.01904 | N33: 50.00624 | O33: 26.004 | P33: 50.00624 | Q33: 1.075339 | R33: 50.00624 | S33: 26.004 | T33: 50.00624 | U33: 1.074711 | V33: 50.00624
A34: 29 | B34: 0 | C34: 17 | D34: 17 | E34: 0.6908 | F34: 0.6783 | K34: 27.004 | L34: 50.00624 | M34: 1.01443 | N34: 50.00624 | O34: 27.004 | P34: 50.00624 | Q34: 1.069609 | R34: 50.00624 | S34: 27.004 | T34: 50.00624 | U34: 1.069801 | V34: 50.00624
A35: 30 | B35: 0 | C35: 17 | D35: 17 | E35: 0.6862 | F35: 0.6766 | K35: 28.004 | L35: 50.00624 | M35: 1.009839 | N35: 50.00624 | O35: 28.004 | P35: 50.00624 | Q35: 1.063987 | R35: 50.00624 | S35: 28.004 | T35: 50.00624 | U35: 1.06442 | V35: 50.00624
A36: 31 | B36: 0 | C36: 17 | D36: 17 | E36: 0.6802 | F36: 0.675 | K36: 29.004 | L36: 50.00624 | M36: 1.005945 | N36: 50.00624 | O36: 29.004 | P36: 50.00624 | Q36: 1.061191 | R36: 50.00624 | S36: 29.004 | T36: 50.00624 | U36: 1.059532 | V36: 50.00624
A37: 32 | B37: 0 | C37: 17 | D37: 17 | E37: 0.6824 | F37: 0.6734 | K37: 30.004 | L37: 50.00624 | M37: 1.002323 | N37: 50.00624 | O37: 30.004 | P37: 50.00624 | Q37: 1.055536 | R37: 50.00624 | S37: 30.004 | T37: 50.00624 | U37: 1.055862 | V37: 50.00624
A38: 33 | B38: 0 | C38: 17 | D38: 17 | E38: 0.6745 | F38: 0.6718 | K38: 31.004 | L38: 50.00624 | M38: 0.9998062 | N38: 50.00624 | O38: 31.004 | P38: 50.00624 | Q38: 1.051811 | R38: 50.00624 | S38: 31.004 | T38: 50.00624 | U38: 1.054944 | V38: 50.00624
A39: 34 | B39: 0 | C39: 17 | D39: 17 | E39: 0.6707 | F39: 0.6702 | K39: 32.004 | L39: 50.00624 | M39: 0.9954769 | N39: 50.00624 | O39: 32.004 | P39: 50.00624 | Q39: 1.048235 | R39: 50.00624 | S39: 32.004 | T39: 50.00624 | U39: 1.064073 | V39: 50.00624
A40: 35 | B40: 0 | C40: 17 | D40: 17 | E40: 0.6745 | F40: 0.6687 | K40: 33.004 | L40: 50.00624 | M40: 0.9946494 | N40: 50.00624 | O40: 33.004 | P40: 50.00624 | Q40: 1.044401 | R40: 50.00624 | S40: 33.004 | T40: 50.00624 | U40: 1.046368 | V40: 50.00624
A41: 36 | B41: 0 | C41: 17 | D41: 17 | E41: 0.6699 | F41: 0.6671 | K41: 34.004 | L41: 50.00624 | M41: 0.9895451 | N41: 50.00624 | O41: 34.004 | P41: 50.00624 | Q41: 1.040663 | R41: 50.00624 | S41: 34.004 | T41: 50.00624 | U41: 1.038316 | V41: 50.00624
A42: 37 | B42: 0 | C42: 17 | D42: 17 | E42: 0.6676 | F42: 0.6656 | K42: 35.004 | L42: 50.00624 | M42: 0.9872991 | N42: 50.00624 | O42: 35.004 | P42: 50.00624 | Q42: 1.037976 | R42: 50.00624 | S42: 35.004 | T42: 50.00624 | U42: 1.038003 | V42: 50.00624
A43: 38 | B43: 0 | C43: 17 | D43: 17 | E43: 0.6624 | F43: 0.664 | K43: 36.004 | L43: 50.00624 | M43: 0.9756368 | N43: 50.00624 | O43: 36.004 | P43: 50.00624 | Q43: 1.033568 | R43: 50.00624 | S43: 36.004 | T43: 50.00624 | U43: 1.033211 | V43: 50.00624
A44: 39 | B44: 0 | C44: 17 | D44: 17 | E44: 0.6647 | F44: 0.6624 | K44: 37.004 | L44: 50.00624 | M44: 0.9725053 | N44: 50.00624 | O44: 37.004 | P44: 50.00624 | Q44: 1.031229 | R44: 50.00624 | S44: 37.004 | T44: 50.00624 | U44: 1.031681 | V44: 50.00624
A45: 40 | B45: 0 | C45: 17 | D45: 17 | E45: 0.6536 | F45: 0.6609 | K45: 38.004 | L45: 50.00624 | M45: 0.9690995 | N45: 50.00624 | O45: 38.004 | P45: 50.00624 | Q45: 1.027326 | R45: 50.00624 | S45: 38.004 | T45: 50.00624 | U45: 1.027457 | V45: 50.00624
A46: 41 | B46: 0 | C46: 17 | D46: 17 | E46: 0.6887 | F46: 0.6594 | K46: 39.004 | L46: 50.00624 | M46: 0.9679346 | N46: 50.00624 | O46: 39.004 | P46: 50.00624 | Q46: 1.023969 | R46: 50.00624 | S46: 39.004 | T46: 50.00624 | U46: 1.024071 | V46: 50.00624
A47: 42 | B47: 0 | C47: 17 | D47: 17 | E47: 0.6701 | F47: 0.6578 | K47: 40.004 | L47: 50.00624 | M47: 0.9640799 | N47: 50.00624 | O47: 40.004 | P47: 50.00624 | Q47: 1.02031 | R47: 50.00624 | S47: 40.004 | T47: 50.00624 | U47: 1.019776 | V47: 50.00624
A48: 43 | B48: 0 | C48: 17 | D48: 17 | E48: 0.6556 | F48: 0.6563 | K48: 41.004 | L48: 50.00624 | M48: 0.9625992 | N48: 50.00624 | O48: 41.004 | P48: 50.00624 | Q48: 1.017988 | R48: 50.00624 | S48: 41.004 | T48: 50.00624 | U48: 1.016611 | V48: 50.00624
A49: 44 | B49: 0 | C49: 17 | D49: 17 | E49: 0.651 | F49: 0.6548 | K49: 42.004 | L49: 50.00624 | M49: 0.9611861 | N49: 50.00624 | O49: 42.004 | P49: 50.00624 | Q49: 1.015119 | R49: 50.00624 | S49: 42.004 | T49: 50.00624 | U49: 1.014456 | V49: 50.00624
A50: 45 | B50: 0 | C50: 17 | D50: 17 | E50: 0.6503 | F50: 0.6532 | K50: 43.004 | L50: 50.00624 | M50: 0.9583871 | N50: 50.00624 | O50: 43.004 | P50: 50.00624 | Q50: 1.013793 | R50: 50.00624 | S50: 43.004 | T50: 50.00624 | U50: 1.012336 | V50: 50.00624
A51: 46 | B51: 0 | C51: 17 | D51: 17 | E51: 0.6588 | F51: 0.6517 | K51: 44.004 | L51: 50.00624 | M51: 0.9543334 | N51: 50.00624 | O51: 44.004 | P51: 50.00624 | Q51: 1.010488 | R51: 50.00624 | S51: 44.004 | T51: 50.00624 | U51: 1.020932 | V51: 50.00624
A52: 47 | B52: 0 | C52: 17 | D52: 17 | E52: 0.6383 | F52: 0.6502 | K52: 45.004 | L52: 50.00624 | M52: 0.9548176 | N52: 50.00624 | O52: 45.004 | P52: 50.00624 | Q52: 1.008129 | R52: 50.00624 | S52: 45.004 | T52: 50.00624 | U52: 1.016169 | V52: 50.00624
A53: 48 | B53: 0 | C53: 17 | D53: 17 | E53: 0.6546 | F53: 0.6487 | K53: 46.004 | L53: 50.00624 | M53: 0.9523412 | N53: 50.00624 | O53: 46.004 | P53: 50.00624 | Q53: 1.003373 | R53: 50.00624 | S53: 46.004 | T53: 50.00624 | U53: 1.013125 | V53: 50.00624
A54: 49 | B54: 0 | C54: 17 | D54: 17 | E54: 0.6311 | F54: 0.6472 | K54: 47.004 | L54: 50.00624 | M54: 0.963844 | N54: 50.00624 | O54: 47.004 | P54: 50.00624 | Q54: 1.002258 | R54: 50.00624 | S54: 47.004 | T54: 50.00624 | U54: 1.012872 | V54: 50.00624
A55: 50 | B55: 0 | C55: 17 | D55: 17 | E55: 0.6546 | F55: 0.6457 | K55: 48.004 | L55: 50.00624 | M55: 0.9598039 | N55: 50.00624 | O55: 48.004 | P55: 50.00624 | Q55: 0.9986385 | R55: 50.00624 | S55: 48.004 | T55: 50.00624 | U55: 1.008269 | V55: 50.00624
A56: 51 | B56: 0 | C56: 17 | D56: 17 | E56: 0.6303 | F56: 0.6441 | K56: 49.004 | L56: 50.00624 | M56: 0.9596611 | N56: 50.00624 | O56: 49.004 | P56: 50.00624 | Q56: 0.9966871 | R56: 50.00624 | S56: 49.004 | T56: 50.00624 | U56: 1.005535 | V56: 50.00624
A57: 52 | B57: 0 | C57: 17 | D57: 17 | E57: 0.6422 | F57: 0.6426 | K57: 50.004 | L57: 50.00624 | M57: 0.9552235 | N57: 50.00624 | O57: 50.004 | P57: 50.00624 | Q57: 0.9935316 | R57: 50.00624 | S57: 50.004 | T57: 50.00624 | U57: 1.00327 | V57: 50.00624
A58: 53 | B58: 0 | C58: 17 | D58: 17 | E58: 0.6295 | F58: 0.6411 | K58: 51.004 | L58: 50.00624 | M58: 0.955914 | N58: 50.00624 | O58: 51.004 | P58: 50.00624 | Q58: 0.990824 | R58: 50.00624 | S58: 51.004 | T58: 50.00624 | U58: 1.003979 | V58: 50.00624
A59: 54 | B59: 0 | C59: 17 | D59: 17 | E59: 0.6317 | F59: 0.6397 | K59: 52.004 | L59: 50.00624 | M59: 0.9532655 | N59: 50.00624 | O59: 52.004 | P59: 50.00624 | Q59: 1.004018 | R59: 50.00624 | S59: 52.004 | T59: 50.00624 | U59: 0.9967612 | V59: 50.00624
A60: 55 | B60: 0 | C60: 17 | D60: 17 | E60: 0.6303 | F60: 0.6382 | K60: 53.004 | L60: 50.00624 | M60: 0.9518439 | N60: 50.00624 | O60: 53.004 | P60: 50.00624 | Q60: 1.002386 | R60: 50.00624 | S60: 53.004 | T60: 50.00624 | U60: 0.9995106 | V60: 50.00624
A61: 56 | B61: 0 | C61: 17 | D61: 17 | E61: 0.63 | F61: 0.6367 | K61: 54.004 | L61: 50.00624 | M61: 0.9493384 | N61: 50.00624 | O61: 54.004 | P61: 50.00624 | Q61: 0.9986252 | R61: 50.00624 | S61: 54.004 | T61: 50.00624 | U61: 0.9951376 | V61: 50.00624
A62: 57 | B62: 0 | C62: 17 | D62: 17 | E62: 0.6233 | F62: 0.6352 | K62: 55.004 | L62: 50.00624 | M62: 0.9497356 | N62: 50.00624 | O62: 55.004 | P62: 50.00624 | Q62: 1.003033 | R62: 50.00624 | S62: 55.004 | T62: 50.00624 | U62: 0.9910943 | V62: 50.00624
A63: 58 | B63: 0 | C63: 17 | D63: 17 | E63: 0.6349 | F63: 0.6337 | K63: 56.004 | L63: 50.00624 | M63: 0.9477211 | N63: 50.00624 | O63: 56.004 | P63: 50.00624 | Q63: 0.9947538 | R63: 50.00624 | S63: 56.004 | T63: 50.00624 | U63: 0.9875646 | V63: 50.00624
A64: 59 | B64: 0 | C64: 17 | D64: 17 | E64: 0.6175 | F64: 0.6322 | K64: 57.004 | L64: 50.00624 | M64: 0.9462306 | N64: 50.00624 | O64: 57.004 | P64: 50.00624 | Q64: 0.9936975 | R64: 50.00624 | S64: 57.004 | T64: 50.00624 | U64: 0.9879475 | V64: 50.00624
A65: 60 | B65: 0 | C65: 17 | D65: 17 | E65: 0.6196 | F65: 0.6308 | K65: 58.004 | L65: 50.00624 | M65: 0.9424994 | N65: 50.00624 | O65: 58.004 | P65: 50.00624 | Q65: 0.9894491 | R65: 50.00624 | S65: 58.004 | T65: 50.00624 | U65: 0.9855564 | V65: 50.00624
A66: 61 | B66: 0 | C66: 17 | D66: 17 | E66: 0.6221 | F66: 0.6293 | K66: 59.004 | L66: 50.00624 | M66: 0.941308 | N66: 50.00624 | O66: 59.004 | P66: 50.00624 | Q66: 0.9874947 | R66: 50.00624 | S66: 59.004 | T66: 50.00624 | U66: 0.9828655 | V66: 50.00624
A67: 62 | B67: 0 | C67: 17 | D67: 17 | E67: 0.6157 | F67: 0.6278 | K67: 60.004 | L67: 50.00624 | M67: 0.9409361 | N67: 50.00624 | O67: 60.004 | P67: 50.00624 | Q67: 0.9857287 | R67: 50.00624 | S67: 60.004 | T67: 50.00624 | U67: 0.9782822 | V67: 50.00624
A68: 63 | B68: 0 | C68: 17 | D68: 17 | E68: 0.62 | F68: 0.6264 | K68: 61.004 | L68: 50.00624 | M68: 0.9383301 | N68: 50.00624 | O68: 61.004 | P68: 50.00624 | Q68: 0.9862585 | R68: 50.00624 | S68: 61.004 | T68: 50.00624 | U68: 0.9763759 | V68: 50.00624
A69: 64 | B69: 0 | C69: 17 | D69: 17 | E69: 0.6115 | F69: 0.6249 | K69: 62.004 | L69: 50.00624 | M69: 0.9372314 | N69: 50.00624 | O69: 62.004 | P69: 50.00624 | Q69: 0.9839783 | R69: 50.00624 | S69: 62.004 | T69: 50.00624 | U69: 0.9748987 | V69: 50.00624
A70: 65 | B70: 0 | C70: 17 | D70: 17 | E70: 0.6141 | F70: 0.6235 | K70: 63.004 | L70: 50.00624 | M70: 0.9355815 | N70: 50.00624 | O70: 63.004 | P70: 50.00624 | Q70: 0.9810513 | R70: 50.00624 | S70: 63.004 | T70: 50.00624 | U70: 0.9732859 | V70: 50.00624
A71: 66 | B71: 0 | C71: 17 | D71: 17 | E71: 0.6094 | F71: 0.622 | K71: 64.004 | L71: 50.00624 | M71: 0.935149 | N71: 50.00624 | O71: 64.004 | P71: 50.00624 | Q71: 0.9783399 | R71: 50.00624 | S71: 64.004 | T71: 50.00624 | U71: 0.9708441 | V71: 50.00624
A72: 67 | B72: 0 | C72: 17 | D72: 17 | E72: 0.6082 | F72: 0.6206 | K72: 65.004 | L72: 50.00624 | M72: 0.9303952 | N72: 50.00624 | O72: 65.004 | P72: 50.00624 | Q72: 0.9762052 | R72: 50.00624 | S72: 65.004 | T72: 50.00624 | U72: 0.9691076 | V72: 50.00624
A73: 68 | B73: 0 | C73: 17 | D73: 17 | E73: 0.6117 | F73: 0.6191 | K73: 66.004 | L73: 50.00624 | M73: 0.9312482 | N73: 50.00624 | O73: 66.004 | P73: 50.00624 | Q73: 0.9752161 | R73: 50.00624 | S73: 66.004 | T73: 50.00624 | U73: 0.9680327 | V73: 50.00624
A74: 69 | B74: 0 | C74: 17 | D74: 17 | E74: 0.612 | F74: 0.6177 | K74: 67.004 | L74: 50.00624 | M74: 0.929818 | N74: 50.00624 | O74: 67.004 | P74: 50.00624 | Q74: 0.9710353 | R74: 50.00624 | S74: 67.004 | T74: 50.00624 | U74: 0.9681945 | V74: 50.00624
A75: 70 | B75: 0 | C75: 17 | D75: 17 | E75: 0.5718 | F75: 0.6163 | K75: 68.004 | L75: 50.00624 | M75: 0.9287111 | N75: 50.00624 | O75: 68.004 | P75: 50.00624 | Q75: 0.9725667 | R75: 50.00624 | S75: 68.004 | T75: 50.00624 | U75: 0.9613506 | V75: 50.00624
A76: 71 | B76: 0 | C76: 17 | D76: 17 | E76: 0.5878 | F76: 0.6148 | K76: 69.004 | L76: 50.00624 | M76: 0.9272117 | N76: 50.00624 | O76: 69.004 | P76: 50.00624 | Q76: 0.9687614 | R76: 50.00624 | S76: 69.004 | T76: 50.00624 | U76: 0.9746783 | V76: 50.00624
A77: 72 | B77: 0 | C77: 17 | D77: 17 | E77: 0.5946 | F77: 0.6134 | K77: 70.004 | L77: 50.00624 | M77: 0.9248574 | N77: 50.00624 | O77: 70.004 | P77: 50.00624 | Q77: 0.9664994 | R77: 50.00624 | S77: 70.004 | T77: 50.00624 | U77: 0.9728856 | V77: 50.00624
A78: 73 | B78: 0 | C78: 17 | D78: 17 | E78: 0.5845 | F78: 0.612 | K78: 71.004 | L78: 50.00624 | M78: 0.9242055 | N78: 50.00624 | O78: 71.004 | P78: 50.00624 | Q78: 0.964359 | R78: 50.00624 | S78: 71.004 | T78: 50.00624 | U78: 0.9684574 | V78: 50.00624
A79: 74 | B79: 0 | C79: 17 | D79: 17 | E79: 0.5917 | F79: 0.6106 | K79: 72.004 | L79: 50.00624 | M79: 0.9320295 | N79: 50.00624 | O79: 72.004 | P79: 50.00624 | Q79: 0.9635114 | R79: 50.00624 | S79: 72.004 | T79: 50.00624 | U79: 0.9690617 | V79: 50.00624
A80: 75 | B80: 0 | C80: 17 | D80: 17 | E80: 0.5883 | F80: 0.6092 | K80: 73.004 | L80: 50.00624 | M80: 0.9296902 | N80: 50.00624 | O80: 73.004 | P80: 50.00624 | Q80: 0.9617175 | R80: 50.00624 | S80: 73.004 | T80: 50.00624 | U80: 0.9685404 | V80: 50.00624
A81: 76 | B81: 0 | C81: 17 | D81: 17 | E81: 0.5901 | F81: 0.6077 | K81: 74.004 | L81: 50.00624 | M81: 0.92973 | N81: 50.00624 | O81: 74.004 | P81: 50.00624 | Q81: 0.9610203 | R81: 50.00624 | S81: 74.004 | T81: 50.00624 | U81: 0.9673848 | V81: 50.00624
A82: 77 | B82: 0 | C82: 17 | D82: 17 | E82: 0.5892 | F82: 0.6063 | K82: 75.004 | L82: 50.00624 | M82: 0.9291675 | N82: 50.00624 | O82: 75.004 | P82: 50.00624 | Q82: 0.9591387 | R82: 50.00624 | S82: 75.004 | T82: 50.00624 | U82: 0.965985 | V82: 50.00624
A83: 78 | B83: 0 | C83: 17 | D83: 17 | E83: 0.5925 | F83: 0.6049 | K83: 76.004 | L83: 50.00624 | M83: 0.9297894 | N83: 50.00624 | O83: 76.004 | P83: 50.00624 | Q83: 0.9569929 | R83: 50.00624 | S83: 76.004 | T83: 50.00624 | U83: 0.9566947 | V83: 50.00624
A84: 79 | B84: 0 | C84: 17 | D84: 17 | E84: 0.5904 | F84: 0.6035 | K84: 76.006 | L84: 50.00624 | M84: 0.9298727 | N84: 50.00624 | O84: 76.006 | P84: 50.00624 | Q84: 0.9568774 | R84: 50.00624 | S84: 76.006 | T84: 50.00624 | U84: 0.9563598 | V84: 50.00624
A85: 80 | B85: 0 | C85: 17 | D85: 17 | E85: 0.5886 | F85: 0.6021 | K85: 77.006 | L85: 53.13124 | M85: 1.067376 | N85: 53.13124 | O85: 77.006 | P85: 53.13124 | Q85: 1.081303 | R85: 53.13124 | S85: 77.006 | T85: 53.13085 | U85: 1.10845 | V85: 53.13085
A86: 81 | B86: 0 | C86: 17 | D86: 17 | E86: 0.59 | F86: 0.6007 | K86: 78.006 | L86: 56.25624 | M86: 1.132334 | N86: 56.25624 | O86: 78.006 | P86: 56.25585 | Q86: 1.149255 | R86: 56.25585 | S86: 78.006 | T86: 56.25663 | U86: 1.156193 | V86: 56.25663
A87: 82 | B87: 0 | C87: 17 | D87: 17 | E87: 0.5854 | F87: 0.5993 | K87: 79.006 | L87: 59.38046 | M87: 1.187536 | N87: 59.38046 | O87: 79.006 | P87: 59.38163 | Q87: 1.210475 | R87: 59.38163 | S87: 79.006 | T87: 59.38046 | U87: 1.203972 | V87: 59.38046
A88: 83 | B88: 0 | C88: 17 | D88: 17 | E88: 0.586 | F88: 0.5979 | K88: 80.006 | L88: 62.50585 | M88: 1.215327 | N88: 62.50585 | O88: 80.006 | P88: 62.50585 | Q88: 1.253813 | R88: 62.50585 | S88: 80.006 | T88: 62.50624 | U88: 1.213314 | V88: 62.50624
A89: 84 | B89: 0 | C89: 17 | D89: 17 | E89: 0.5847 | F89: 0.5966 | K89: 81.006 | L89: 65.63163 | M89: 1.273029 | N89: 65.63163 | O89: 81.006 | P89: 65.63085 | Q89: 1.300793 | R89: 65.63085 | S89: 81.006 | T89: 65.63085 | U89: 1.293891 | V89: 65.63085
A90: 85 | B90: 0 | C90: 17 | D90: 17 | E90: 0.5934 | F90: 0.5952 | K90: 82.006 | L90: 68.75429 | M90: 1.309917 | N90: 68.75429 | O90: 82.006 | P90: 68.75546 | Q90: 1.352405 | R90: 68.75546 | S90: 82.006 | T90: 68.75585 | U90: 1.34339 | V90: 68.75585
A91: 86 | B91: 0 | C91: 17 | D91: 17 | E91: 0.5861 | F91: 0.5938 | K91: 83.006 | L91: 71.88124 | M91: 1.35224 | N91: 71.88124 | O91: 83.006 | P91: 71.88124 | Q91: 1.393153 | R91: 71.88124 | S91: 83.006 | T91: 71.88124 | U91: 1.384515 | V91: 71.88124
A92: 87 | B92: 0 | C92: 17 | D92: 17 | E92: 0.5801 | F92: 0.5924 | K92: 84.006 | L92: 75.00624 | M92: 1.393703 | N92: 75.00624 | O92: 84.006 | P92: 75.00624 | Q92: 1.445231 | R92: 75.00624 | S92: 84.006 | T92: 75.00546 | U92: 1.41908 | V92: 75.00546
A93: 88 | B93: 0 | C93: 17 | D93: 17 | E93: 0.5869 | F93: 0.5911 | K93: 85.006 | L93: 78.13084 | M93: 1.43274 | N93: 78.13084 | O93: 85.006 | P93: 78.13045 | Q93: 1.472234 | R93: 78.13045 | S93: 85.006 | T93: 78.13201 | U93: 1.44652 | V93: 78.13201
A94: 89 | B94: 0 | C94: 17 | D94: 17 | E94: 0.5802 | F94: 0.5897 | K94: 86.006 | L94: 81.25663 | M94: 1.449644 | N94: 81.25663 | O94: 86.006 | P94: 81.25623 | Q94: 1.496732 | R94: 81.25623 | S94: 86.006 | T94: 81.25741 | U94: 1.454985 | V94: 81.25741
A95: 90 | B95: 0 | C95: 17 | D95: 17 | E95: 0.5845 | F95: 0.5883 | K95: 87.006 | L95: 84.38084 | M95: 1.457193 | N95: 84.38084 | O95: 87.006 | P95: 84.38046 | Q95: 1.511979 | R95: 84.38046 | S95: 87.006 | T95: 84.38123 | U95: 1.474806 | V95: 84.38123
A96: 91 | B96: 0 | C96: 17 | D96: 17 | E96: 0.5776 | F96: 0.587 | K96: 88.006 | L96: 87.50662 | M96: 1.475794 | N96: 87.50662 | O96: 88.006 | P96: 87.50545 | Q96: 1.532114 | R96: 87.50545 | S96: 88.006 | T96: 87.50584 | U96: 1.503491 | V96: 87.50584
A97: 92 | B97: 0 | C97: 17 | D97: 17 | E97: 0.5759 | F97: 0.5856 | K97: 89.006 | L97: 90.63202 | M97: 1.506864 | N97: 90.63202 | O97: 89.006 | P97: 90.63084 | Q97: 1.544509 | R97: 90.63084 | S97: 89.006 | T97: 90.63084 | U97: 1.539238 | V97: 90.63084
A98: 93 | B98: 0 | C98: 17 | D98: 17 | E98: 0.5821 | F98: 0.5843 | K98: 90.006 | L98: 93.75623 | M98: 1.546903 | N98: 93.75623 | O98: 90.006 | P98: 93.75623 | Q98: 1.579176 | R98: 93.75623 | S98: 90.006 | T98: 93.75702 | U98: 1.580075 | V98: 93.75702
A99: 94 | B99: 0 | C99: 17 | D99: 17 | E99: 0.578 | F99: 0.5829 | K99: 91.006 | L99: 96.88123 | M99: 1.57293 | N99: 96.88123 | O99: 91.006 | P99: 96.88045 | Q99: 1.613187 | R99: 96.88045 | S99: 91.006 | T99: 96.88162 | U99: 1.602096 | V99: 96.88162
A100: 95 | B100: 0 | C100: 17 | D100: 17 | E100: 0.5908 | F100: 0.5816 | K100: 92.004 | L100: 100.0012 | M100: 1.606696 | N100: 100.0012 | O100: 92.006 | P100: 100.0055 | Q100: 1.657919 | R100: 100.0055 | S100: 92.006 | T100: 100.0062 | U100: 1.642778 | V100: 100.0062
A101: 96 | B101: 0 | C101: 17 | D101: 17 | E101: 0.5808 | F101: 0.5802 | K101: 92.006 | L101: 100.0074 | M101: 1.606767 | N101: 100.0074 | O101: 92.008 | P101: 100.0113 | Q101: 1.657744 | R101: 100.0113 | S101: 92.008 | T101: 100.0125 | U101: 1.642845 | V101: 100.0125
A102: 97 | B102: 0 | C102: 17 | D102: 17 | E102: 0.5711 | F102: 0.5789 | K102: 93.006 | L102: 99.99921 | M102: 1.55028 | N102: 99.99921 | O102: 93.008 | P102: 99.99882 | Q102: 1.574492 | R102: 99.99882 | S102: 93.008 | T102: 99.99882 | U102: 1.585373 | V102: 99.99882
A103: 98 | B103: 0 | C103: 17 | D103: 17 | E103: 0.5824 | F103: 0.5775 | K103: 94.006 | L103: 99.99921 | M103: 1.533391 | N103: 99.99921 | O103: 94.008 | P103: 99.99882 | Q103: 1.562155 | R103: 99.99882 | S103: 94.008 | T103: 99.99882 | U103: 1.571516 | V103: 99.99882
A104: 99 | B104: 0 | C104: 17 | D104: 17 | E104: 0.6118 | F104: 0.5762 | K104: 95.006 | L104: 99.99921 | M104: 1.518061 | N104: 99.99921 | O104: 95.008 | P104: 99.9996 | Q104: 1.550942 | R104: 99.9996 | S104: 95.008 | T104: 99.9996 | U104: 1.557981 | V104: 99.9996
A105: 100 | B105: 0 | C105: 17 | D105: 17 | E105: 0.5607 | F105: 0.5749 | K105: 96.006 | L105: 99.99998 | M105: 1.508773 | N105: 99.99998 | O105: 96.008 | P105: 99.99998 | Q105: 1.537471 | R105: 99.99998 | S105: 96.008 | T105: 99.99998 | U105: 1.550626 | V105: 99.99998
A106: 101 | B106: 0 | C106: 17 | D106: 17 | E106: 0.5835 | F106: 0.5735 | K106: 97.006 | L106: 99.99998 | M106: 1.506042 | N106: 99.99998 | O106: 97.008 | P106: 99.99998 | Q106: 1.531484 | R106: 99.99998 | S106: 97.008 | T106: 99.99998 | U106: 1.541541 | V106: 99.99998
A107: 102 | B107: 0 | C107: 17 | D107: 17 | E107: 0.567 | F107: 0.5722 | K107: 98.006 | L107: 99.99998 | M107: 1.500002 | N107: 99.99998 | O107: 98.008 | P107: 99.99998 | Q107: 1.525915 | R107: 99.99998 | S107: 98.008 | T107: 99.99998 | U107: 1.536259 | V107: 99.99998
A108: 103 | B108: 0 | C108: 17 | D108: 17 | E108: 0.5796 | F108: 0.5709 | K108: 99.006 | L108: 99.99998 | M108: 1.49185 | N108: 99.99998 | O108: 99.008 | P108: 99.99998 | Q108: 1.51965 | R108: 99.99998 | S108: 99.008 | T108: 99.99998 | U108: 1.529903 | V108: 99.99998
A109: 104 | B109: 0 | C109: 17 | D109: 17 | E109: 0.5611 | F109: 0.5696 | K109: 100.006 | L109: 99.99998 | M109: 1.484554 | N109: 99.99998 | O109: 100.008 | P109: 99.99998 | Q109: 1.514377 | R109: 99.99998 | S109: 100.008 | T109: 99.99998 | U109: 1.524416 | V109: 99.99998
A110: 105 | B110: 0 | C110: 17 | D110: 17 | E110: 0.5559 | F110: 0.5683 | K110: 101.006 | L110: 99.99998 | M110: 1.480749 | N110: 99.99998 | O110: 101.008 | P110: 99.99998 | Q110: 1.510725 | R110: 99.99998 | S110: 101.008 | T110: 99.99998 | U110: 1.518211 | V110: 99.99998
A111: 106 | B111: 0 | C111: 17 | D111: 17 | E111: 0.576 | F111: 0.5669 | K111: 102.006 | L111: 99.99998 | M111: 1.477297 | N111: 99.99998 | O111: 102.008 | P111: 99.99998 | Q111: 1.505556 | R111: 99.99998 | S111: 102.008 | T111: 99.99998 | U111: 1.512177 | V111: 99.99998
A112: 107 | B112: 0 | C112: 17 | D112: 17 | E112: 0.5672 | F112: 0.5656 | K112: 103.006 | L112: 99.99998 | M112: 1.473692 | N112: 99.99998 | O112: 103.008 | P112: 99.99998 | Q112: 1.499755 | R112: 99.99998 | S112: 103.008 | T112: 99.99998 | U112: 1.506594 | V112: 99.99998
A113: 108 | B113: 0 | C113: 17 | D113: 17 | E113: 0.5621 | F113: 0.5643 | K113: 104.006 | L113: 99.99998 | M113: 1.470069 | N113: 99.99998 | O113: 104.008 | P113: 99.99998 | Q113: 1.497751 | R113: 99.99998 | S113: 104.008 | T113: 99.99998 | U113: 1.503805 | V113: 99.99998
A114: 109 | B114: 0 | C114: 17 | D114: 17 | E114: 0.571 | F114: 0.563 | K114: 105.006 | L114: 99.99998 | M114: 1.46883 | N114: 99.99998 | O114: 105.008 | P114: 99.99998 | Q114: 1.491524 | R114: 99.99998 | S114: 105.008 | T114: 99.99998 | U114: 1.499111 | V114: 99.99998
A115: 110 | B115: 0 | C115: 17 | D115: 17 | E115: 0.5376 | F115: 0.5617 | K115: 106.006 | L115: 99.99998 | M115: 1.463816 | N115: 99.99998 | O115: 106.008 | P115: 99.99998 | Q115: 1.489713 | R115: 99.99998 | S115: 106.008 | T115: 99.99998 | U115: 1.494664 | V115: 99.99998
A116: 111 | B116: 0 | C116: 17 | D116: 17 | E116: 0.5664 | F116: 0.5604 | K116: 107.006 | L116: 99.99998 | M116: 1.461206 | N116: 99.99998 | O116: 107.008 | P116: 99.99998 | Q116: 1.485201 | R116: 99.99998 | S116: 107.008 | T116: 99.99998 | U116: 1.491331 | V116: 99.99998
A117: 112 | B117: 0 | C117: 17 | D117: 17 | E117: 0.5513 | F117: 0.5591 | K117: 108.006 | L117: 99.99998 | M117: 1.45751 | N117: 99.99998 | O117: 108.008 | P117: 99.99998 | Q117: 1.483866 | R117: 99.99998 | S117: 108.008 | T117: 99.99998 | U117: 1.484773 | V117: 99.99998
A118: 113 | B118: 0 | C118: 17 | D118: 17 | E118: 0.574 | F118: 0.5579 | K118: 109.006 | L118: 99.99998 | M118: 1.455657 | N118: 99.99998 | O118: 109.008 | P118: 99.99998 | Q118: 1.480048 | R118: 99.99998 | S118: 109.008 | T118: 99.99998 | U118: 1.483348 | V118: 99.99998
A119: 114 | B119: 0 | C119: 17 | D119: 17 | E119: 0.5549 | F119: 0.5566 | K119: 110.006 | L119: 99.99998 | M119: 1.452608 | N119: 99.99998 | O119: 110.008 | P119: 99.99998 | Q119: 1.478231 | R119: 99.99998 | S119: 110.008 | T119: 99.99998 | U119: 1.477636 | V119: 99.99998
A120: 115 | B120: 0 | C120: 17 | D120: 17 | E120: 0.5511 | F120: 0.5553 | K120: 111.006 | L120: 99.99998 | M120: 1.450169 | N120: 99.99998 | O120: 111.008 | P120: 99.99998 | Q120: 1.470889 | R120: 99.99998 | S120: 111.008 | T120: 99.99998 | U120: 1.475092 | V120: 99.99998
A121: 116 | B121: 0 | C121: 17 | D121: 17 | E121: 0.5599 | F121: 0.554 | K121: 112.006 | L121: 99.99998 | M121: 1.448161 | N121: 99.99998 | O121: 112.008 | P121: 99.99998 | Q121: 1.479127 | R121: 99.99998 | S121: 112.008 | T121: 99.99998 | U121: 1.473412 | V121: 99.99998
A122: 117 | B122: 1 | C122: 17 | D122: 17.5 | E122: 0.848 | F122: 0.5527 | K122: 113.006 | L122: 99.99998 | M122: 1.447802 | N122: 99.99998 | O122: 113.008 | P122: 99.99998 | Q122: 1.465425 | R122: 99.99998 | S122: 113.008 | T122: 99.99998 | U122: 1.469827 | V122: 99.99998
A123: 118 | B123: 1 | C123: 18 | D123: 18.5 | E123: 0.9024 | F123: 0.7286 | K123: 114.006 | L123: 99.99998 | M123: 1.443011 | N123: 99.99998 | O123: 114.008 | P123: 99.99998 | Q123: 1.463881 | R123: 99.99998 | S123: 114.008 | T123: 99.99998 | U123: 1.471496 | V123: 99.99998
A124: 119 | B124: 1 | C124: 19 | D124: 19.5 | E124: 0.9554 | F124: 0.8423 | K124: 115.006 | L124: 99.99998 | M124: 1.441403 | N124: 99.99998 | O124: 115.008 | P124: 99.99998 | Q124: 1.464519 | R124: 99.99998 | S124: 115.008 | T124: 99.99998 | U124: 1.465 | V124: 99.99998
A125: 120 | B125: 1 | C125: 20 | D125: 20.5 | E125: 0.9788 | F125: 0.9217 | K125: 116.006 | L125: 99.99998 | M125: 1.437781 | N125: 99.99998 | O125: 116.008 | P125: 99.99998 | Q125: 1.458198 | R125: 99.99998 | S125: 116.008 | T125: 99.99998 | U125: 1.461824 | V125: 99.99998
A126: 121 | B126: 1 | C126: 21 | D126: 21.5 | E126: 1.0303 | F126: 0.9819 | K126: 117.006 | L126: 99.99998 | M126: 1.435106 | N126: 99.99998 | O126: 117.008 | P126: 99.99998 | Q126: 1.457664 | R126: 99.99998 | S126: 117.008 | T126: 99.99998 | U126: 1.458339 | V126: 99.99998
A127: 122 | B127: 1 | C127: 22 | D127: 22.5 | E127: 1.0697 | F127: 1.0316 | K127: 118.006 | L127: 99.99998 | M127: 1.433466 | N127: 99.99998 | O127: 118.008 | P127: 99.99998 | Q127: 1.456161 | R127: 99.99998 | S127: 118.008 | T127: 99.99998 | U127: 1.454924 | V127: 99.99998
A128: 123 | B128: 1 | C128: 23 | D128: 23.5 | E128: 1.1048 | F128: 1.0754 | K128: 119.006 | L128: 99.99998 | M128: 1.430401 | N128: 99.99998 | O128: 119.008 | P128: 99.99998 | Q128: 1.454672 | R128: 99.99998 | S128: 119.008 | T128: 99.99998 | U128: 1.452134 | V128: 99.99998
A129: 124 | B129: 1 | C129: 24 | D129: 24.5 | E129: 1.1372 | F129: 1.116 | K129: 120.006 | L129: 99.99998 | M129: 1.431007 | N129: 99.99998 | O129: 120.008 | P129: 99.99998 | Q129: 1.450981 | R129: 99.99998 | S129: 120.008 | T129: 99.99998 | U129: 1.451953 | V129: 99.99998
A130: 125 | B130: 1 | C130: 25 | D130: 25.5 | E130: 1.1798 | F130: 1.1547 | K130: 121.006 | L130: 99.99998 | M130: 1.428272 | N130: 99.99998 | O130: 121.008 | P130: 99.99998 | Q130: 1.449725 | R130: 99.99998 | S130: 121.008 | T130: 99.99998 | U130: 1.44996 | V130: 99.99998
A131: 126 | B131: 1 | C131: 26 | D131: 26.5 | E131: 1.2143 | F131: 1.1924 | K131: 122.006 | L131: 99.99998 | M131: 1.426225 | N131: 99.99998 | O131: 122.008 | P131: 99.99998 | Q131: 1.446988 | R131: 99.99998 | S131: 122.008 | T131: 99.99998 | U131: 1.446788 | V131: 99.99998
A132: 127 | B132: 1 | C132: 27 | D132: 27.5 | E132: 1.2533 | F132: 1.2295 | K132: 123.006 | L132: 99.99998 | M132: 1.425022 | N132: 99.99998 | O132: 123.008 | P132: 99.99998 | Q132: 1.447087 | R132: 99.99998 | S132: 123.008 | T132: 99.99998 | U132: 1.444533 | V132: 99.99998
A133: 128 | B133: 1 | C133: 28 | D133: 28.5 | E133: 1.2946 | F133: 1.2663 | K133: 124.006 | L133: 99.99998 | M133: 1.422878 | N133: 99.99998 | O133: 124.008 | P133: 99.99998 | Q133: 1.443966 | R133: 99.99998 | S133: 124.008 | T133: 99.99998 | U133: 1.442125 | V133: 99.99998
A134: 129 | B134: 1 | C134: 29 | D134: 29.5 | E134: 1.2719 | F134: 1.3028 | K134: 125.006 | L134: 99.99998 | M134: 1.420019 | N134: 99.99998 | O134: 125.008 | P134: 99.99998 | Q134: 1.439988 | R134: 99.99998 | S134: 125.008 | T134: 99.99998 | U134: 1.436814 | V134: 99.99998
A135: 130 | B135: 1 | C135: 30 | D135: 30.5 | E135: 1.3482 | F135: 1.3392 | K135: 126.006 | L135: 99.99998 | M135: 1.419857 | N135: 99.99998 | O135: 126.008 | P135: 99.99998 | Q135: 1.438187 | R135: 99.99998 | S135: 126.008 | T135: 99.99998 | U135: 1.43527 | V135: 99.99998
A136: 131 | B136: 1 | C136: 31 | D136: 31.5 | E136: 1.3653 | F136: 1.3754 | K136: 127.006 | L136: 99.99998 | M136: 1.416846 | N136: 99.99998 | O136: 127.008 | P136: 99.99998 | Q136: 1.434091 | R136: 99.99998 | S136: 127.008 | T136: 99.99998 | U136: 1.433451 | V136: 99.99998
A137: 132 | B137: 1 | C137: 32 | D137: 32.5 | E137: 1.4266 | F137: 1.4115 | K137: 128.006 | L137: 99.99998 | M137: 1.416288 | N137: 99.99998 | O137: 128.008 | P137: 99.99998 | Q137: 1.432943 | R137: 99.99998 | S137: 128.008 | T137: 99.99998 | U137: 1.431496 | V137: 99.99998
A138: 133 | B138: 0 | C138: 33 | D138: 33 | E138: 1.4263 | F138: 1.4475 | K138: 129.006 | L138: 99.99998 | M138: 1.414459 | N138: 99.99998 | O138: 129.008 | P138: 99.99998 | Q138: 1.433488 | R138: 99.99998 | S138: 129.008 | T138: 99.99998 | U138: 1.431232 | V138: 99.99998
A139: 134 | B139: 0 | C139: 33 | D139: 33 | E139: 1.2006 | F139: 1.3311 | K139: 130.006 | L139: 99.99998 | M139: 1.411747 | N139: 99.99998 | O139: 130.008 | P139: 99.99998 | Q139: 1.432241 | R139: 99.99998 | S139: 130.008 | T139: 99.99998 | U139: 1.428179 | V139: 99.99998
A140: 135 | B140: 0 | C140: 33 | D140: 33 | E140: 1.151 | F140: 1.2663 | K140: 131.006 | L140: 99.99998 | M140: 1.41073 | N140: 99.99998 | O140: 131.008 | P140: 99.99998 | Q140: 1.430035 | R140: 99.99998 | S140: 131.008 | T140: 99.99998 | U140: 1.426891 | V140: 99.99998
A141: 136 | B141: 0 | C141: 33 | D141: 33 | E141: 1.1244 | F141: 1.2293 | K141: 132.006 | L141: 99.99998 | M141: 1.410525 | N141: 99.99998 | O141: 132.008 | P141: 99.99998 | Q141: 1.426425 | R141: 99.99998 | S141: 132.008 | T141: 99.99998 | U141: 1.425866 | V141: 99.99998
A142: 137 | B142: 0 | C142: 33 | D142: 33 | E142: 1.1012 | F142: 1.2077 | K142: 133.006 | L142: 99.99998 | M142: 1.407794 | N142: 99.99998 | O142: 133.008 | P142: 99.99998 | Q142: 1.422748 | R142: 99.99998 | S142: 133.008 | T142: 99.99998 | U142: 1.422435 | V142: 99.99998
A143: 138 | B143: 0 | C143: 33 | D143: 33 | E143: 1.089 | F143: 1.1944 | K143: 134.006 | L143: 99.99998 | M143: 1.405969 | N143: 99.99998 | O143: 134.008 | P143: 99.99998 | Q143: 1.424973 | R143: 99.99998 | S143: 134.008 | T143: 99.99998 | U143: 1.42201 | V143: 99.99998
A144: 139 | B144: 0 | C144: 33 | D144: 33 | E144: 1.0728 | F144: 1.1858 | K144: 135.006 | L144: 99.99998 | M144: 1.404384 | N144: 99.99998 | O144: 135.008 | P144: 99.99998 | Q144: 1.423038 | R144: 99.99998 | S144: 135.008 | T144: 99.99998 | U144: 1.41929 | V144: 99.99998
A145: 140 | B145: 0 | C145: 33 | D145: 33 | E145: 1.0605 | F145: 1.1798 | K145: 136.006 | L145: 99.99998 | M145: 1.402272 | N145: 99.99998 | O145: 136.008 | P145: 99.99998 | Q145: 1.418441 | R145: 99.99998 | S145: 136.008 | T145: 99.99998 | U145: 1.41646 | V145: 99.99998
A146: 141 | B146: 0 | C146: 33 | D146: 33 | E146: 1.0456 | F146: 1.1751 | K146: 137.006 | L146: 99.99998 | M146: 1.402171 | N146: 99.99998 | O146: 137.008 | P146: 99.99998 | Q146: 1.419699 | R146: 99.99998 | S146: 137.008 | T146: 99.99998 | U146: 1.414083 | V146: 99.99998
A147: 142 | B147: 0 | C147: 33 | D147: 33 | E147: 1.0383 | F147: 1.1713 | K147: 138.006 | L147: 99.99998 | M147: 1.401411 | N147: 99.99998 | O147: 138.008 | P147: 99.99998 | Q147: 1.415477 | R147: 99.99998 | S147: 138.008 | T147: 99.99998 | U147: 1.411588 | V147: 99.99998
A148: 143 | B148: 0 | C148: 33 | D148: 33 | E148: 1.0257 | F148: 1.1678 | K148: 139.006 | L148: 99.99998 | M148: 1.399632 | N148: 99.99998 | O148: 139.008 | P148: 99.99998 | Q148: 1.414832 | R148: 99.99998 | S148: 139.008 | T148: 99.99998 | U148: 1.412239 | V148: 99.99998
A149: 144 | B149: 0 | C149: 33 | D149: 33 | E149: 1.0189 | F149: 1.1646 | K149: 140.006 | L149: 99.99998 | M149: 1.398616 | N149: 99.99998 | O149: 140.008 | P149: 99.99998 | Q149: 1.412368 | R149: 99.99998 | S149: 140.008 | T149: 99.99998 | U149: 1.409778 | V149: 99.99998
A150: 145 | B150: 0 | C150: 33 | D150: 33 | E150: 1.0122 | F150: 1.1616 | K150: 141.006 | L150: 99.99998 | M150: 1.396166 | N150: 99.99998 | O150: 141.008 | P150: 99.99998 | Q150: 1.411965 | R150: 99.99998 | S150: 141.008 | T150: 99.99998 | U150: 1.410711 | V150: 99.99998
A151: 146 | B151: 0 | C151: 33 | D151: 33 | E151: 1.0093 | F151: 1.1586 | K151: 142.006 | L151: 99.99998 | M151: 1.39757 | N151: 99.99998 | O151: 142.008 | P151: 99.99998 | Q151: 1.41001 | R151: 99.99998 | S151: 142.008 | T151: 99.99998 | U151: 1.405673 | V151: 99.99998
A152: 147 | B152: 0 | C152: 33 | D152: 33 | E152: 1.0029 | F152: 1.1557 | K152: 143.006 | L152: 99.99998 | M152: 1.394429 | N152: 99.99998 | O152: 143.008 | P152: 99.99998 | Q152: 1.408628 | R152: 99.99998 | S152: 143.008 | T152: 99.99998 | U152: 1.408331 | V152: 99.99998
A153: 148 | B153: 0 | C153: 33 | D153: 33 | E153: 0.9961 | F153: 1.1528 | K153: 144.006 | L153: 99.99998 | M153: 1.392311 | N153: 99.99998 | O153: 144.008 | P153: 99.99998 | Q153: 1.409196 | R153: 99.99998 | S153: 144.008 | T153: 99.99998 | U153: 1.403108 | V153: 99.99998
A154: 149 | B154: 0 | C154: 33 | D154: 33 | E154: 0.9892 | F154: 1.1499 | K154: 145.006 | L154: 99.99998 | M154: 1.39256 | N154: 99.99998 | O154: 145.008 | P154: 99.99998 | Q154: 1.408063 | R154: 99.99998 | S154: 145.008 | T154: 99.99998 | U154: 1.402948 | V154: 99.99998
A155: 150 | B155: 0 | C155: 33 | D155: 33 | E155: 0.9839 | F155: 1.1471 | K155: 146.006 | L155: 99.99998 | M155: 1.391562 | N155: 99.99998 | O155: 146.008 | P155: 99.99998 | Q155: 1.403437 | R155: 99.99998 | S155: 146.008 | T155: 99.99998 | U155: 1.399816 | V155: 99.99998
A156: 151 | B156: 0 | C156: 33 | D156: 33 | E156: 0.9862 | F156: 1.1442 | K156: 147.006 | L156: 99.99998 | M156: 1.38855 | N156: 99.99998 | O156: 147.008 | P156: 99.99998 | Q156: 1.406691 | R156: 99.99998 | S156: 147.008 | T156: 99.99998 | U156: 1.400914 | V156: 99.99998
A157: 152 | B157: 0 | C157: 33 | D157: 33 | E157: 0.9717 | F157: 1.1414 | K157: 148.006 | L157: 99.99998 | M157: 1.38845 | N157: 99.99998 | O157: 148.008 | P157: 99.99998 | Q157: 1.403647 | R157: 99.99998 | S157: 148.008 | T157: 99.99998 | U157: 1.396957 | V157: 99.99998
A158: 153 | B158: 0 | C158: 33 | D158: 33 | E158: 0.9672 | F158: 1.1386 | K158: 149.006 | L158: 99.99998 | M158: 1.38609 | N158: 99.99998 | O158: 149.008 | P158: 99.99998 | Q158: 1.397385 | R158: 99.99998 | S158: 149.008 | T158: 99.99998 | U158: 1.392395 | V158: 99.99998
A159: 154 | B159: 0 | C159: 33 | D159: 33 | E159: 0.9621 | F159: 1.1358 | K159: 150.006 | L159: 99.99998 | M159: 1.384785 | N159: 99.99998 | O159: 150.008 | P159: 99.99998 | Q159: 1.399709 | R159: 99.99998 | S159: 150.008 | T159: 99.99998 | U159: 1.393026 | V159: 99.99998
A160: 155 | B160: 0 | C160: 33 | D160: 33 | E160: 0.9673 | F160: 1.1329 | K160: 151.006 | L160: 99.99998 | M160: 1.383464 | N160: 99.99998 | O160: 151.008 | P160: 99.99998 | Q160: 1.397285 | R160: 99.99998 | S160: 151.008 | T160: 99.99998 | U160: 1.386792 | V160: 99.99998
A161: 156 | B161: 0 | C161: 33 | D161: 33 | E161: 0.9586 | F161: 1.1301 | K161: 152.006 | L161: 99.99998 | M161: 1.383538 | N161: 99.99998 | O161: 152.008 | P161: 99.99998 | Q161: 1.397844 | R161: 99.99998 | S161: 152.008 | T161: 99.99998 | U161: 1.388824 | V161: 99.99998
A162: 157 | B162: 0 | C162: 33 | D162: 33 | E162: 0.9557 | F162: 1.1274 | K162: 152.008 | L162: 99.99998 | M162: 1.383507 | N162: 99.99998 | O162: 152.01 | P162: 99.99998 | Q162: 1.397987 | R162: 99.99998 | S162: 152.01 | T162: 99.99998 | U162: 1.388862 | V162: 99.99998
A163: 158 | B163: 0 | C163: 33 | D163: 33 | E163: 0.9582 | F163: 1.1246 | K163: 153.008 | L163: 103.1246 | M163: 1.48388 | N163: 103.1246 | O163: 153.01 | P163: 103.125 | Q163: 1.49866 | R163: 103.125 | S163: 153.01 | T163: 103.125 | U163: 1.476753 | V163: 103.125
A164: 159 | B164: 0 | C164: 33 | D164: 33 | E164: 0.9516 | F164: 1.1218 | K164: 154.008 | L164: 106.2504 | M164: 1.532786 | N164: 106.2504 | O164: 154.01 | P164: 106.2496 | Q164: 1.547923 | R164: 106.2496 | S164: 154.01 | T164: 106.25 | U164: 1.530449 | V164: 106.25
A165: 160 | B165: 0 | C165: 33 | D165: 33 | E165: 0.9499 | F165: 1.119 | K165: 155.008 | L165: 109.3746 | M165: 1.578326 | N165: 109.3746 | O165: 155.01 | P165: 109.3742 | Q165: 1.582282 | R165: 109.3742 | S165: 155.01 | T165: 109.3746 | U165: 1.589387 | V165: 109.3746
A166: 161 | B166: 0 | C166: 33 | D166: 33 | E166: 0.9516 | F166: 1.1162 | K166: 156.008 | L166: 112.4992 | M166: 1.616379 | N166: 112.4992 | O166: 156.01 | P166: 112.4992 | Q166: 1.635564 | R166: 112.4992 | S166: 156.01 | T166: 112.5008 | U166: 1.635165 | V166: 112.5008
A167: 162 | B167: 0 | C167: 33 | D167: 33 | E167: 0.948 | F167: 1.1135 | K167: 157.008 | L167: 115.6234 | M167: 1.660655 | N167: 115.6234 | O167: 157.01 | P167: 115.6262 | Q167: 1.692652 | R167: 115.6262 | S167: 157.01 | T167: 115.6242 | U167: 1.664609 | V167: 115.6242
A168: 163 | B168: 0 | C168: 33 | D168: 33 | E168: 0.9441 | F168: 1.1107 | K168: 158.008 | L168: 118.748 | M168: 1.697493 | N168: 118.748 | O168: 158.01 | P168: 118.75 | Q168: 1.725825 | R168: 118.75 | S168: 158.01 | T168: 118.7492 | U168: 1.685071 | V168: 118.7492
A169: 164 | B169: 0 | C169: 33 | D169: 33 | E169: 0.942 | F169: 1.108 | K169: 159.008 | L169: 121.8746 | M169: 1.71721 | N169: 121.8746 | O169: 159.01 | P169: 121.8746 | Q169: 1.762337 | R169: 121.8746 | S169: 159.01 | T169: 121.875 | U169: 1.705011 | V169: 121.875
A170: 165 | B170: 0 | C170: 33 | D170: 33 | E170: 0.9322 | F170: 1.1053 | K170: 160.008 | L170: 124.9988 | M170: 1.733932 | N170: 124.9988 | O170: 160.01 | P170: 125 | Q170: 1.782702 | R170: 125 | S170: 160.01 | T170: 125.0008 | U170: 1.721388 | V170: 125.0008
A171: 166 | B171: 0 | C171: 33 | D171: 33 | E171: 0.9355 | F171: 1.1025 | K171: 161.008 | L171: 128.1254 | M171: 1.751788 | N171: 128.1254 | O171: 161.01 | P171: 128.1242 | Q171: 1.800139 | R171: 128.1242 | S171: 161.01 | T171: 128.1246 | U171: 1.735364 | V171: 128.1246
A172: 167 | B172: 0 | C172: 33 | D172: 33 | E172: 0.9393 | F172: 1.0998 | K172: 162.008 | L172: 131.25 | M172: 1.766928 | N172: 131.25 | O172: 162.01 | P172: 131.2496 | Q172: 1.820135 | R172: 131.2496 | S172: 162.01 | T172: 131.25 | U172: 1.76172 | V172: 131.25
A173: 168 | B173: 0 | C173: 33 | D173: 33 | E173: 0.9282 | F173: 1.0971 | K173: 163.008 | L173: 134.3746 | M173: 1.786733 | N173: 134.3746 | O173: 163.01 | P173: 134.3746 | Q173: 1.837406 | R173: 134.3746 | S173: 163.01 | T173: 134.3746 | U173: 1.784346 | V173: 134.3746
A174: 169 | B174: 0 | C174: 33 | D174: 33 | E174: 0.9347 | F174: 1.0944 | K174: 164.008 | L174: 137.4996 | M174: 1.809628 | N174: 137.4996 | O174: 164.01 | P174: 137.4992 | Q174: 1.858141 | R174: 137.4992 | S174: 164.01 | T174: 137.4996 | U174: 1.811237 | V174: 137.4996
A175: 170 | B175: 0 | C175: 33 | D175: 33 | E175: 0.9255 | F175: 1.0917 | K175: 165.008 | L175: 140.6246 | M175: 1.837263 | N175: 140.6246 | O175: 165.01 | P175: 140.6242 | Q175: 1.881153 | R175: 140.6242 | S175: 165.01 | T175: 140.6246 | U175: 1.842334 | V175: 140.6246
A176: 171 | B176: 0 | C176: 33 | D176: 33 | E176: 0.9257 | F176: 1.089 | K176: 166.008 | L176: 143.7488 | M176: 1.867877 | N176: 143.7488 | O176: 166.01 | P176: 143.75 | Q176: 1.907112 | R176: 143.75 | S176: 166.01 | T176: 143.7504 | U176: 1.88472 | V176: 143.7504
A177: 172 | B177: 0 | C177: 33 | D177: 33 | E177: 0.9183 | F177: 1.0863 | K177: 167.008 | L177: 146.8746 | M177: 1.906201 | N177: 146.8746 | O177: 167.01 | P177: 146.8754 | Q177: 1.946535 | R177: 146.8754 | S177: 167.01 | T177: 146.875 | U177: 1.924154 | V177: 146.875
A178: 173 | B178: 0 | C178: 33 | D178: 33 | E178: 0.9199 | F178: 1.0837 | K178: 168.008 | L178: 149.9996 | M178: 1.947991 | N178: 149.9996 | O178: 168.01 | P178: 149.9992 | Q178: 1.983923 | R178: 149.9992 | S178: 168.01 | T178: 150.0004 | U178: 1.965807 | V178: 150.0004
A179: 174 | B179: 0 | C179: 33 | D179: 33 | E179: 0.9227 | F179: 1.081 | K179: 168.01 | L179: 150.0062 | M179: 1.948479 | N179: 150.0062 | O179: 168.012 | P179: 150.0051 | Q179: 1.983461 | R179: 150.0051 | S179: 168.012 | T179: 150.0062 | U179: 1.965296 | V179: 150.0062
A180: 175 | B180: 0 | C180: 33 | D180: 33 | E180: 0.9057 | F180: 1.0783 | K180: 168.012 | L180: 150.0129 | M180: 1.949121 | N180: 150.0129 | O180: 168.014 | P180: 150.0113 | Q180: 1.983053 | R180: 150.0113 | S180: 169.012 | T180: 149.9988 | U180: 1.929239 | V180: 149.9988
A181: 176 | B181: 0 | C181: 33 | D181: 33 | E181: 0.9179 | F181: 1.0757 | K181: 169.012 | L181: 149.9992 | M181: 1.903257 | N181: 149.9992 | O181: 169.014 | P181: 149.9988 | Q181: 1.944872 | R181: 149.9988 | S181: 170.012 | T181: 149.9988 | U181: 1.913827 | V181: 149.9988
A182: 177 | B182: 0 | C182: 33 | D182: 33 | E182: 0.906 | F182: 1.073 | K182: 170.012 | L182: 149.9992 | M182: 1.89249 | N182: 149.9992 | O182: 170.014 | P182: 149.9988 | Q182: 1.93302 | R182: 149.9988 | S182: 171.012 | T182: 149.9996 | U182: 1.907852 | V182: 149.9996
A183: 178 | B183: 0 | C183: 33 | D183: 33 | E183: 0.9263 | F183: 1.0704 | K183: 171.012 | L183: 149.9992 | M183: 1.885354 | N183: 149.9992 | O183: 171.014 | P183: 149.9996 | Q183: 1.925966 | R183: 149.9996 | S183: 172.012 | T183: 150 | U183: 1.899252 | V183: 150
A184: 179 | B184: 0 | C184: 33 | D184: 33 | E184: 0.8973 | F184: 1.0678 | K184: 172.012 | L184: 150 | M184: 1.880435 | N184: 150 | O184: 172.014 | P184: 150 | Q184: 1.91944 | R184: 150 | S184: 173.012 | T184: 150 | U184: 1.895879 | V184: 150
A185: 180 | B185: 0 | C185: 33 | D185: 33 | E185: 0.9064 | F185: 1.0651 | K185: 173.012 | L185: 150 | M185: 1.873289 | N185: 150 | O185: 173.014 | P185: 150 | Q185: 1.912787 | R185: 150 | S185: 174.012 | T185: 150 | U185: 1.891423 | V185: 150
A186: 181 | B186: 0 | C186: 33 | D186: 33 | E186: 0.9043 | F186: 1.0625 | K186: 174.012 | L186: 150 | M186: 1.868801 | N186: 150 | O186: 174.014 | P186: 150 | Q186: 1.907907 | R186: 150 | S186: 175.012 | T186: 150 | U186: 1.885333 | V186: 150
A187: 182 | B187: 0 | C187: 33 | D187: 33 | E187: 0.895 | F187: 1.0599 | K187: 175.012 | L187: 150 | M187: 1.864412 | N187: 150 | O187: 175.014 | P187: 150 | Q187: 1.902629 | R187: 150 | S187: 176.012 | T187: 150 | U187: 1.880899 | V187: 150
A188: 183 | B188: 0 | C188: 33 | D188: 33 | E188: 0.8945 | F188: 1.0573 | K188: 176.012 | L188: 150 | M188: 1.861091 | N188: 150 | O188: 176.014 | P188: 150 | Q188: 1.90108 | R188: 150 | S188: 177.012 | T188: 150 | U188: 1.878043 | V188: 150
A189: 184 | B189: 0 | C189: 33 | D189: 33 | E189: 0.9009 | F189: 1.0547 | K189: 177.012 | L189: 150 | M189: 1.857245 | N189: 150 | O189: 177.014 | P189: 150 | Q189: 1.897795 | R189: 150 | S189: 178.012 | T189: 150 | U189: 1.873971 | V189: 150
A190: 185 | B190: 0 | C190: 33 | D190: 33 | E190: 0.8953 | F190: 1.0521 | K190: 178.012 | L190: 150 | M190: 1.854612 | N190: 150 | O190: 178.014 | P190: 150 | Q190: 1.893192 | R190: 150 | S190: 179.012 | T190: 150 | U190: 1.871638 | V190: 150
A191: 186 | B191: 0 | C191: 33 | D191: 33 | E191: 0.8918 | F191: 1.0495 | K191: 179.012 | L191: 150 | M191: 1.852386 | N191: 150 | O191: 179.014 | P191: 150 | Q191: 1.889643 | R191: 150 | S191: 180.012 | T191: 150 | U191: 1.869159 | V191: 150
A192: 187 | B192: 0 | C192: 33 | D192: 33 | E192: 0.8922 | F192: 1.047 | K192: 180.012 | L192: 150 | M192: 1.849734 | N192: 150 | O192: 180.014 | P192: 150 | Q192: 1.887413 | R192: 150 | S192: 181.012 | T192: 150 | U192: 1.863447 | V192: 150
A193: 188 | B193: 0 | C193: 33 | D193: 33 | E193: 0.8861 | F193: 1.0444 | K193: 181.012 | L193: 150 | M193: 1.84519 | N193: 150 | O193: 181.014 | P193: 150 | Q193: 1.881694 | R193: 150 | S193: 182.012 | T193: 150 | U193: 1.859511 | V193: 150
A194: 189 | B194: 0 | C194: 33 | D194: 33 | E194: 0.8888 | F194: 1.0418 | K194: 182.012 | L194: 150 | M194: 1.842488 | N194: 150 | O194: 182.014 | P194: 150 | Q194: 1.879224 | R194: 150 | S194: 183.012 | T194: 150 | U194: 1.857499 | V194: 150
A195: 190 | B195: 0 | C195: 33 | D195: 33 | E195: 0.8848 | F195: 1.0393 | K195: 183.012 | L195: 150 | M195: 1.840875 | N195: 150 | O195: 183.014 | P195: 150 | Q195: 1.876829 | R195: 150 | S195: 184.012 | T195: 150 | U195: 1.854502 | V195: 150
A196: 191 | B196: 0 | C196: 33 | D196: 33 | E196: 0.8757 | F196: 1.0367 | K196: 184.012 | L196: 150 | M196: 1.837785 | N196: 150 | O196: 184.014 | P196: 150 | Q196: 1.874629 | R196: 150 | S196: 185.012 | T196: 150 | U196: 1.851377 | V196: 150
A197: 192 | B197: 0 | C197: 33 | D197: 33 | E197: 0.881 | F197: 1.0342 | K197: 185.012 | L197: 150 | M197: 1.835122 | N197: 150 | O197: 185.014 | P197: 150 | Q197: 1.869895 | R197: 150 | S197: 186.012 | T197: 150 | U197: 1.85032 | V197: 150
A198: 193 | B198: 0 | C198: 33 | D198: 33 | E198: 0.878 | F198: 1.0316 | K198: 186.012 | L198: 150 | M198: 1.832669 | N198: 150 | O198: 186.014 | P198: 150 | Q198: 1.869126 | R198: 150 | S198: 187.012 | T198: 150 | U198: 1.848683 | V198: 150
A199: 194 | B199: 0 | C199: 33 | D199: 33 | E199: 0.8834 | F199: 1.0291 | K199: 187.012 | L199: 150 | M199: 1.82968 | N199: 150 | O199: 187.014 | P199: 150 | Q199: 1.86835 | R199: 150 | S199: 188.012 | T199: 150 | U199: 1.844531 | V199: 150
A200: 195 | B200: 0 | C200: 33 | D200: 33 | E200: 0.8769 | F200: 1.0266 | K200: 188.012 | L200: 150 | M200: 1.826678 | N200: 150 | O200: 188.014 | P200: 150 | Q200: 1.866178 | R200: 150 | S200: 189.012 | T200: 150 | U200: 1.840789 | V200: 150
... 270 more rows

Sheet Sheet3
A1: -0.2021214962 | B1: -0.9803903103 | C1: -1.092704535 | D1: 1.623045206 | E1: 0.7664682865 | F1: -0.6253259182 | G1: -0.07772803307 | H1: -1.678628683 | I1: 1.921581507 | J1: -0.4899880886 | K1: -0.6887280941 | L1: -1.012529135 | M1: -0.3617818356 | N1: -0.1993768215 | O1: 1.449295282 | P1: -0.003656148911 | Q1: -1.70862174 | R1: 0.6215078831 | S1: -1.288657904 | T1: 1.722990274 | U1: 1.882677078 | V1: 0.2326660156 | W1: -1.943040848 | X1: -1.708896637 | Y1: 1.058145523 | Z1: 1.668632507 | AA1: 0.6206111908 | AB1: 1.599628448 | AC1: 1.478731155 | AD1: 0.3184661865 | AE1: -0.6331195831 | AF1: -0.9404792786 | AG1: 1.019433975 | AH1: -1.942832947 | AI1: 0.1707668304 | AJ1: 0.5457801819 | AK1: 1.555253983 | AL1: 0.7597351074 | AM1: 0.9072704315 | AN1: -0.06659317017 | AO1: 0.9611911774 | AP1: -1.698829651 | AQ1: -0.5486087799 | AR1: -0.9025993347 | AS1: 1.11224556 | AT1: 0.5564727783 | AU1: 1.678129196 | AV1: -0.08723831177 | AW1: -0.1165828705 | AX1: 1.400642395
A2: -0.3476017714 | B2: -0.2147382498 | C2: -1.40732944 | D2: 4.533285499 | E2: 3.091141582 | F2: -0.9700578451 | G2: -4.949819446 | H2: -2.200836539 | I2: 2.784144282 | J2: -2.151402831 | K2: -3.644897342 | L2: -0.9975379705 | M2: -0.8328598738 | N2: -0.1650232077 | O2: 3.898813128 | P2: -2.329639792 | Q2: -3.643538356 | R2: 1.417168975 | S2: -2.117816806 | T2: 2.603392005 | U2: 3.046272695 | V2: 4.380703866 | W2: -2.884400785 | X2: -2.065664232 | Y2: 4.885919988 | Z2: 1.259718835 | AA2: 0.5547365546 | AB2: 4.091773927 | AC2: 2.644756734 | AD2: 3.940735757 | AE2: -0.1598867774 | AF2: -0.4355105758 | AG2: 3.354032934 | AH2: -4.455004632 | AI2: 3.731101453 | AJ2: 3.128124177 | AK2: 4.044998586 | AL2: 4.833775461 | AM2: 3.299630582 | AN2: -4.200864732 | AO2: 1.748903692 | AP2: -2.108298242 | AQ2: -0.8967241645 | AR2: -0.6849822402 | AS2: 3.49699825 | AT2: 3.309822977 | AU2: 3.5536322 | AV2: -4.611726701 | AW2: -1.320532262 | AX2: 0.4695996642
A3: -0.03237938881 | B3: 0.3342950344 | C3: 1.069560766 | D3: 1.632402182 | E3: 0.4193036556 | F3: 0.7642495632 | G3: 0.9387242794 | H3: 0.1517121792 | I3: 0.5496976376 | J3: 1.21666503 | K3: 0.1740987301 | L3: 0.3809831142 | M3: -0.266197443 | N3: 1.066541433 | O3: -1.849315882 | P3: 1.695214987 | Q3: 1.346618414 | R3: -0.3111212254 | S3: -1.756519556 | T3: -0.5305922031 | U3: -0.09194612503 | V3: -0.8365769386 | W3: 1.562530041 | X3: 1.525296688 | Y3: 0.1591448784 | Z3: -0.7410035133 | AA3: -0.6927266121 | AB3: 1.473897457 | AC3: 1.616290569 | AD3: 0.2793745995 | AE3: 0.6955714226 | AF3: -1.215197086 | AG3: 1.154490948 | AH3: -0.9004426003 | AI3: -1.397575855 | AJ3: -1.666986942 | AK3: -0.3512539864 | AL3: 0.5945448875 | AM3: 1.902831554 | AN3: 0.9935278893 | AO3: 1.974055767 | AP3: 1.639337063 | AQ3: -0.5282063484 | AR3: -0.3586525917 | AS3: 1.005420208 | AT3: -0.8910660744 | AU3: 0.1843104362 | AV3: -0.8485283852 | AW3: 1.617839336 | AX3: 1.878335476
A4: -3.216190338 | B4: 4.662020206 | C4: 1.943192482 | D4: 0.530898571 | E4: 1.91195488 | F4: 1.088802814 | G4: 4.079508781 | H4: 0.4177641869 | I4: 0.652885437 | J4: 3.849813938 | K4: 0.0891160965 | L4: 2.966983318 | M4: -2.09523201 | N4: 0.6013035774 | O4: -2.628264427 | P4: 0.8348059654 | Q4: 3.895244598 | R4: -3.999521732 | S4: -4.353203773 | T4: -1.677482128 | U4: -0.04390150309 | V4: -4.949289858 | W4: 3.909319937 | X4: 3.498698771 | Y4: 0.3702583909 | Z4: -3.754955828 | AA4: -2.961873114 | AB4: 4.87821728 | AC4: 1.469320357 | AD4: 2.278639376 | AE4: 1.927756369 | AF4: -2.616378367 | AG4: 1.622337401 | AH4: -3.801590502 | AI4: -4.088219702 | AJ4: -4.994432032 | AK4: -4.110559523 | AL4: 1.605059206 | AM4: 2.724513113 | AN4: 0.2936282754 | AO4: 2.215236723 | AP4: 3.970295489 | AQ4: -1.117886603 | AR4: -1.795217097 | AS4: 4.217619002 | AT4: -4.178549349 | AU4: 2.54959017 | AV4: -2.780448496 | AW4: 3.398956358 | AX4: 0.5110707879
A5: 17.18124926 | B5: 4.881897569 | C5: 17.39013255 | D5: 1.224508882 | E5: 4.622331262 | F5: 12.53965437 | G5: 21.65128291 | H5: 25.35077155 | I5: 28.75042498 | J5: 3.681297898 | K5: 23.69319499 | L5: 9.05467093 | M5: 11.75303042 | N5: 20.49432814 | O5: 5.703368783 | P5: 24.52370703 | Q5: 25.81764758 | R5: 15.1662451 | S5: 9.869304299 | T5: 23.94537985 | U5: 9.237892628 | V5: 7.381331921 | W5: 11.75997019 | X5: 9.029080868 | Y5: 14.4376874 | Z5: 26.82856321 | AA5: 13.63823175 | AB5: 15.89696646 | AC5: 13.22879076 | AD5: 28.8514781 | AE5: 24.57655191 | AF5: 5.809285641 | AG5: 6.548702717 | AH5: 14.38757658 | AI5: 15.51243067 | AJ5: 9.703538418 | AK5: 25.33492327 | AL5: 14.37435865 | AM5: 17.38336802 | AN5: 28.51722479 | AO5: 10.52495241 | AP5: 29.74932432 | AQ5: 1.126863956 | AR5: 3.187844753 | AS5: 23.05629015 | AT5: 1.449973583 | AU5: 27.68041849 | AV5: 24.65289831 | AW5: 3.866436481 | AX5: 20.41380644
A6: -0.8683915138 | B6: 1.702102184 | C6: -1.86686945 | D6: 1.032115459 | E6: -0.3060212135 | F6: -1.898857594 | G6: 0.9235281944 | H6: -0.4814419746 | I6: 1.931153774 | J6: -1.106262684 | K6: 1.826230526 | L6: 0.8360552788 | M6: -1.28186655 | N6: 0.9548869133 | O6: 1.716237545 | P6: 1.85960722 | Q6: -1.070082188 | R6: 1.159591198 | S6: 1.468549252 | T6: -0.5357861519 | U6: -1.313556433 | V6: -1.480008841 | W6: 0.5351183414 | X6: 1.393934488 | Y6: 1.196048975 | Z6: 1.478571177 | AA6: -0.7838895321 | AB6: 0.8207762241 | AC6: 0.1421778202 | AD6: 0.4674246311 | AE6: 0.5211260319 | AF6: 0.4653913975 | AG6: -0.1001698971 | AH6: -0.1384484768 | AI6: 0.8251650333 | AJ6: 0.7027800083 | AK6: 0.8440058231 | AL6: 0.0359518528 | AM6: 0.5032274723 | AN6: 1.907942057 | AO6: -0.6502950191 | AP6: 1.36562562 | AQ6: -0.06968665123 | AR6: 0.4558775425 | AS6: -0.2080724239 | AT6: 0.2255728245 | AU6: -0.5185773373 | AV6: 0.7215864658 | AW6: -1.454326391 | AX6: 0.9907934666
A7: -3.365141451 | B7: 3.592871726 | C7: -0.5632320046 | D7: 4.05405432 | E7: -1.421295702 | F7: -0.09903818369 | G7: 0.0994887948 | H7: -1.512979567 | I7: 2.007967532 | J7: -4.33103472 | K7: 3.806888163 | L7: 0.8383598924 | M7: -3.406406939 | N7: 4.570111334 | O7: 4.96668011 | P7: 0.3114452958 | Q7: -3.897863925 | R7: 4.097518027 | S7: 1.860114634 | T7: -3.213485777 | U7: -4.753939509 | V7: -3.790387511 | W7: 4.835883975 | X7: 2.873339057 | Y7: 0.7762879133 | Z7: 1.8088907 | AA7: -2.125932574 | AB7: 3.272823691 | AC7: 4.685599208 | AD7: 1.19091928 | AE7: 0.5060690641 | AF7: 0.7389587164 | AG7: -2.888123393 | AH7: -3.34272325 | AI7: 1.382543445 | AJ7: 1.677994132 | AK7: 1.790110469 | AL7: 4.670552611 | AM7: 1.161605716 | AN7: 2.496179938 | AO7: -2.797810435 | AP7: 1.580657363 | AQ7: -1.249505877 | AR7: 4.599766135 | AS7: -2.317473292 | AT7: 0.4792875051 | AU7: -3.05249393 | AV7: 4.395002723 | AW7: -1.75534904 | AX7: 2.772693038
A8: 2.263190746 | B8: 2.573225498 | C8: 5.734670162 | D8: 0.7465481758 | E8: 20.20163298 | F8: 5.286448002 | G8: 0.7812666893 | H8: 20.06011248 | I8: 0.09075880051 | J8: 26.4347291 | K8: 18.24729681 | L8: 13.27748537 | M8: 2.868068218 | N8: 6.95556879 | O8: 29.07026052 | P8: 11.33616686 | Q8: 29.47106123 | R8: 7.786467075 | S8: 4.187657833 | T8: 15.17365694 | U8: 21.59282863 | V8: 0.04516303539 | W8: 23.42837512 | X8: 17.05008209 | Y8: 4.186651111 | Z8: 1.083199382 | AA8: 1.953594089 | AB8: 23.98045242 | AC8: 2.315141559 | AD8: 15.0777787 | AE8: 28.35723102 | AF8: 1.211115718 | AG8: 20.66579998 | AH8: 16.71640098 | AI8: 17.32678592 | AJ8: 13.42957199 | AK8: 3.926126361 | AL8: 10.68656623 | AM8: 3.549758792 | AN8: 5.323321223 | AO8: 16.78362072 | AP8: 1.675774455 | AQ8: 21.71364963 | AR8: 11.57986343 | AS8: 3.925783038 | AT8: 24.37152565 | AU8: 16.50595844 | AV8: 6.886698604 | AW8: 0.04011332989 | AX8: 23.4613198
A10: 591.2104611 | B10: 1727007.214 | C10: 34.93146672 | D10: 2.31872083e+10 | E10: 16624646.37 | F10: 240.2737944 | G10: 503.741403 | H10: 94.84039873 | I10: 31154050.12 | J10: 214.9624999 | K10: 80320245.38 | L10: 52.96029016 | M10: 421.4704149 | N10: 155344757.5 | O10: 2.26135211e+10 | P10: 455.1552727 | Q10: 3340.872438 | R10: 37873938.7 | S10: 1670.815115 | T10: 12224916.26 | U10: 12093677.1 | V10: 9017425.213 | W10: 37144170.79 | X10: 1342147.542 | Y10: 868282464.8 | Z10: 16328.58412 | AA10: 16535.47221 | AB10: 501986440.9 | AC10: 2485410.367 | AD10: 4686620.059 | AE10: 14204.51394 | AF10: 18117.85149 | AG10: 8641141.066 | AH10: 5087.562418 | AI10: 639130.687 | AJ10: 1175227.451 | AK10: 157574325.5 | AL10: 386353236.5 | AM10: 7318778.158 | AN10: 21055.62689 | AO10: 75974.94886 | AP10: 14379877.38 | AQ10: 18401.71983 | AR10: 2565242.436 | AS10: 42272499.25 | AT10: 2113443.206 | AU10: 43505265.69 | AV10: 1654856.671 | AW10: 131350.1286 | AX10: 71797.73624

Sheet Data1
G7: Iteration | H7: RRMS | I7: Yfilter
G8: Number
G9: 1 | H9: 0.2617323051 | I9: 0.02617323051
G10: 2 | H10: 0.1301014049 | I10: 0.03656604794
G11: 3 | H11: 0.1482835771 | I11: 0.04773780086
G12: 4 | H12: 0.1417882704 | I12: 0.05714284781
G13: 5 | H13: 0.1117772365 | I13: 0.06260628668
G14: 6 | H14: 0.1141616353 | I14: 0.06776182154
G15: 7 | H15: 0.1099877347 | I15: 0.07198441285
G16: 8 | H16: 0.1089771602 | I16: 0.07568368758
G17: 9 | H17: 0.09889244377 | I17: 0.0780045632
G18: 10 | H18: 0.1131679317 | I18: 0.08152090005
G19: 11 | H19: 0.1205447438 | I19: 0.08542328443
G20: 12 | H20: 0.08647851214 | I20: 0.0855288072
G21: 13 | H21: 0.1148402098 | I21: 0.08845994746
G22: 14 | H22: 0.1074057901 | I22: 0.09035453172
G23: 15 | H23: 0.09197461372 | I23: 0.09051653992
G24: 16 | H24: 0.08902600647 | I24: 0.09036748658
G25: 17 | H25: 0.09987417082 | I25: 0.091318155
G26: 18 | H26: 0.09934610708 | I26: 0.09212095021
G27: 19 | H27: 0.09764566347 | I27: 0.09267342154
G28: 20 | H28: 0.1017532423 | I28: 0.09358140361
G29: 21 | H29: 0.09231318941 | I29: 0.09345458219
G30: 22 | H30: 0.09140018986 | I30: 0.09324914296
G31: 23 | H31: 0.1076593054 | I31: 0.09469015921
G32: 24 | H32: 0.08814518835 | I32: 0.09403566212
G33: 25 | H33: 0.09551119734 | I33: 0.09418321564
G34: 26 | H34: 0.07980021031 | I34: 0.09274491511
G35: 27 | H35: 0.09086930061 | I35: 0.09255735366
G36: 28 | H36: 0.08476750057 | I36: 0.09177836835
G37: 29 | H37: 0.09182162047 | I37: 0.09178269356
G38: 30 | H38: 0.09242490072 | I38: 0.09184691428
G39: 31 | H39: 0.08912158783 | I39: 0.09157438163
G40: 32 | H40: 0.09592599563 | I40: 0.09200954303
G41: 33 | H41: 0.0818318787 | I41: 0.0909917766
G42: 34 | H42: 0.08070110806 | I42: 0.08996270975
G43: 35 | H43: 0.07993863319 | I43: 0.08896030209
G44: 36 | H44: 0.09177709189 | I44: 0.08924198107
G45: 37 | H45: 0.1035285407 | I45: 0.09067063703
G46: 38 | H46: 0.1085327481 | I46: 0.09245684814
G47: 39 | H47: 0.09175399405 | I47: 0.09238656273
G48: 40 | H48: 0.09581214445 | I48: 0.09272912091
G49: 41 | H49: 0.08981589778 | I49: 0.09243779859
G50: 42 | H50: 0.09283063074 | I50: 0.09247708181
G51: 43 | H51: 0.0906196456 | I51: 0.09229133819
G52: 44 | H52: 0.09204355781 | I52: 0.09226656015
G53: 45 | H53: 0.08631448848 | I53: 0.09167135298
G54: 46 | H54: 0.08656485949 | I54: 0.09116070363
G55: 47 | H55: 0.08337347326 | I55: 0.09038198059
G56: 48 | H56: 0.08038252921 | I56: 0.08938203546
G57: 49 | H57: 0.09224918051 | I57: 0.08966874996
G58: 50 | H58: 0.09586820834 | I58: 0.0902886958
G59: 51 | H59: 0.09187951059 | I59: 0.09044777728
G60: 52 | H60: 0.08195601587 | I60: 0.08959860114
G61: 53 | H61: 0.08674100279 | I61: 0.0893128413
G62: 54 | H62: 0.08785854582 | I62: 0.08916741176
G63: 55 | H63: 0.09379384797 | I63: 0.08963005538
G64: 56 | H64: 0.0888948123 | I64: 0.08955653107
G65: 57 | H65: 0.09336510471 | I65: 0.08993738843
G66: 58 | H66: 0.08925155528 | I66: 0.08986880512
G67: 59 | H67: 0.09873700091 | I67: 0.0907556247
G68: 60 | H68: 0.08091249213 | I68: 0.08977131144
G69: 61 | H69: 0.08682793449 | I69: 0.08947697375
G70: 62 | H70: 0.08626107219 | I70: 0.08915538359
G71: 63 | H71: 0.08425737872 | I71: 0.0886655831
G72: 64 | H72: 0.09320263684 | I72: 0.08911928848
G73: 65 | H73: 0.07852312374 | I73: 0.088059672
G74: 66 | H74: 0.08818333854 | I74: 0.08807203866
G75: 67 | H75: 0.08216495718 | I75: 0.08748133051
G76: 68 | H76: 0.07283244335 | I76: 0.08601644179
G77: 69 | H77: 0.08841068845 | I77: 0.08625586646
G78: 70 | H78: 0.0785595456 | I78: 0.08548623437
G79: 71 | H79: 0.07690836248 | I79: 0.08462844718
G80: 72 | H80: 0.06765435425 | I80: 0.08293103789
G81: 73 | H81: 0.0698769123 | I81: 0.08162562533
G82: 74 | H82: 0.07767899731 | I82: 0.08123096253
G83: 75 | H83: 0.0743277231 | I83: 0.08054063859
G84: 76 | H84: 0.06837988018 | I84: 0.07932456275
G85: 77 | H85: 0.07888375737 | I85: 0.07928048221
G86: 78 | H86: 0.07419701266 | I86: 0.07877213525
G87: 79 | H87: 0.06731498504 | I87: 0.07762642023
G88: 80 | H88: 0.07567682078 | I88: 0.07743146029
G89: 81 | H89: 0.05677028001 | I89: 0.07536534226
G90: 82 | H90: 0.06703925954 | I90: 0.07453273399
G91: 83 | H91: 0.07040863231 | I91: 0.07412032382
G92: 84 | H92: 0.06440251785 | I92: 0.07314854322
G93: 85 | H93: 0.0766394964 | I93: 0.07349763854
G94: 86 | H94: 0.07336314658 | I94: 0.07348418934
G95: 87 | H95: 0.07277368065 | I95: 0.07341313848
G96: 88 | H96: 0.06927600371 | I96: 0.072999425
G97: 89 | H97: 0.07648013524 | I97: 0.07334749602
G98: 90 | H98: 0.066103142 | I98: 0.07262306062
G99: 91 | H99: 0.07229696195 | I99: 0.07259045075
G100: 92 | H100: 0.07750245879 | I100: 0.07308165156
G101: 93 | H101: 0.06442053748 | I101: 0.07221554015
G102: 94 | H102: 0.06752802247 | I102: 0.07174678838
G103: 95 | H103: 0.06352636371 | I103: 0.07092474591
G104: 96 | H104: 0.07394988697 | I104: 0.07122726002
G105: 97 | H105: 0.0620606695 | I105: 0.07031060097
G106: 98 | H106: 0.07196297589 | I106: 0.07047583846
G107: 99 | H107: 0.07204976441 | I107: 0.07063323105
G108: 100 | H108: 0.07112464288 | I108: 0.07068237224
G109: 101 | H109: 0.07643255794 | I109: 0.07125739081
G110: 102 | H110: 0.06945032332 | I110: 0.07107668406
G111: 103 | H111: 0.07698366306 | I111: 0.07166738196
G112: 104 | H112: 0.07626063962 | I112: 0.07212670773
G113: 105 | H113: 0.07093390099 | I113: 0.07200742705
G114: 106 | H114: 0.06666521683 | I114: 0.07147320603
G115: 107 | H115: 0.06564474926 | I115: 0.07089036035
G116: 108 | H116: 0.07616389246 | I116: 0.07141771356
G117: 109 | H117: 0.07890797293 | I117: 0.0721667395
G118: 110 | H118: 0.0676021908 | I118: 0.07171028463
G119: 111 | H119: 0.08126467801 | I119: 0.07266572397
G120: 112 | H120: 0.07610454771 | I120: 0.07300960634
G121: 113 | H121: 0.07258936853 | I121: 0.07296758256
G122: 114 | H122: 0.0767115125 | I122: 0.07334197556
G123: 115 | H123: 0.07438675196 | I123: 0.0734464532
G124: 116 | H124: 0.07192676498 | I124: 0.07329448437
G125: 117 | H125: 0.07522606378 | I125: 0.07348764231
G126: 118 | H126: 0.06333016982 | I126: 0.07247189507
G127: 119 | H127: 0.06560075351 | I127: 0.07178478091
G128: 120 | H128: 0.0740741797 | I128: 0.07201372079
G129: 121 | H129: 0.06686603243 | I129: 0.07149895195
G130: 122 | H130: 0.06683850527 | I130: 0.07103290728
G131: 123 | H131: 0.05335535438 | I131: 0.06926515199
G132: 124 | H132: 0.0642389468 | I132: 0.06876253147
G133: 125 | H133: 0.07493214388 | I133: 0.06937949271
G134: 126 | H134: 0.06367478307 | I134: 0.06880902175
G135: 127 | H135: 0.05968375263 | I135: 0.06789649484
G136: 128 | H136: 0.07158818882 | I136: 0.06826566424
G137: 129 | H137: 0.05778892109 | I137: 0.06721798992
G138: 130 | H138: 0.08319307383 | I138: 0.06881549831
G139: 131 | H139: 0.0689407429 | I139: 0.06882802277
G140: 132 | H140: 0.07520549329 | I140: 0.06946576982
G141: 133 | H141: 0.06467901384 | I141: 0.06898709422
G142: 134 | H142: 0.05783386367 | I142: 0.06787177117
G143: 135 | H143: 0.08323028328 | I143: 0.06940762238
G144: 136 | H144: 0.07105575851 | I144: 0.06957243599
G145: 137 | H145: 0.0695405551 | I145: 0.0695692479
G146: 138 | H146: 0.06727041097 | I146: 0.06933936421
G147: 139 | H147: 0.06760545112 | I147: 0.0691659729
G148: 140 | H148: 0.07782108329 | I148: 0.07003148394
G149: 141 | H149: 0.06002603781 | I149: 0.06903093933
G150: 142 | H150: 0.08269817311 | I150: 0.07039766271

Sheet Sheet1
E2: 154.482114
E3: 167.7966011
E4: 177.2906237
E5: 184.0921494
E6: 190.5316287
E7: 195.988055
E8: 200.6307698
E9: 204.4191425
E10: 209.8162478
E11: 215.0704074
E12: 219.8785025
E13: 224.5185378
E14: 228.4889096
E15: 232.6807357
E16: 237.3727394
E17: 241.5513425
E18: 241.5871774
E19: 209.0443394
E20: 198.4427274
E21: 191.6765835
E22: 187.6914705
E23: 184.1625669
E24: 181.6202622
E25: 179.0307924
E26: 177.3042462
E27: 174.9121194
E28: 174.3895082
E29: 172.5608779
E30: 171.1100593
E31: 170.1586044
E32: 168.5473533
E33: 168.0258515
E34: 167.2431172
E35: 165.8363335
E36: 165.6211301
E37: 164.5857707
E38: 164.1380969
E39: 163.3770432
E40: 162.7392668
E41: 161.9579178
E42: 161.2947973
E43: 161.2049886
E44: 160.4032441
E45: 159.7334049
E46: 159.2744939
E47: 159.1717862
E48: 158.476675
E49: 157.9666524
E50: 158.0957705
E51: 157.2562474
E52: 157.0341048
E53: 156.8990832
E54: 156.6595005
E55: 156.3035374
E56: 155.7502049
E57: 155.5583271
E58: 155.1812881
E59: 154.5516087
E60: 154.2426676
E61: 154.1322923
E62: 153.6919031
E63: 153.6544533
E64: 153.5144163
E65: 152.6467093
E66: 153.1193856
E67: 152.5395736
E68: 152.4969991
E69: 151.9399463
E70: 151.788773
E71: 151.4534232
E72: 151.1555173
E73: 150.8224304
E74: 150.2967955
E75: 150.3506043
E76: 150.3519826
E77: 150.118025
E78: 150.3021258
E79: 150.0664926
E80: 149.6718068
E81: 149.2481441
E82: 149.1754089
E83: 148.6832502
E84: 148.3485598
E85: 147.8694896
E86: 148.026895
E87: 147.8286919
E88: 147.6764146
E89: 147.6399449
E90: 147.4516921
E91: 147.6059466
E92: 146.7535625
E93: 146.8762803
E94: 146.4761143
E95: 146.4179569
E96: 146.476408
E97: 146.4298815
E98: 146.2465431
E99: 145.9892778
E100: 145.6477336
E101: 145.3367371
E102: 145.3406786
E103: 147.0305465
E104: 147.785046
E105: 145.3347441
E106: 145.7764934
E107: 145.5154737
E108: 144.9775728
E109: 145.0736884
E110: 145.0611671
E111: 144.79481
E112: 144.2982773
E113: 144.0427469
E114: 144.2899137
E115: 143.9521673
E116: 143.6672511
E117: 144.0958487
E118: 143.6227468
E119: 143.6091411
E120: 143.8136263
E121: 143.8167812
E122: 143.2780128
E123: 143.3008854
E124: 143.5535906
E125: 142.7107914
E126: 143.7264898
E127: 139.5884366
E128: 143.2844624
E129: 141.3685291
